{"text_format":"1","workbook":"xlsx","n_sheets":24,"sheets":["Cover Page","Contents","Facility Info","Operational Data","Operational Summary","Perf. Form 1","Energy Form 1","Permit Compliance","Improvements","Public Liasion","CO2 N2O","Residue Quality ","Water","Air (periodic)","Air (CEMS)","HCl","SO2","NOx","TOC","Particulates","CO 0.5 hourly","CO 95% 10 min","NH3","Template changes log"],"not_rendered":{"charts":8,"images":3,"macros":1,"external_links":0,"defined_names":24,"comments":0,"pivot_tables":0},"unopened":[],"bounds":{"document_bytes":16777216,"sheet_cells":100000,"rows_first":2000,"rows_last":500,"rows_between":2000,"halvings":0,"cell_chars":16384,"cell_head_chars":4096},"cells_cut":0,"cells_raw":0,"read":"whole","date_system":"1900"}

{"sheet":"Cover Page","index":0,"n_rows":53,"n_cols":14,"rows_kept":53,"cut":false,"hidden":false,"merged":[[52,2,52,3],[48,2,48,3],[48,6,48,8],[36,1,36,8],[40,2,40,8],[42,2,42,4],[44,2,44,4],[46,2,46,3],[46,6,46,8],[13,13,18,15],[34,1,34,8],[0,3,5,6],[7,1,23,8],[28,1,28,8],[30,1,30,8],[32,1,32,8]]}
[null,null,null,"Add company logo"]
[null,null,null,null,null,null,null,null,null,null,null,null,null,"Version 24.2a (for incinerators) - 27/11/24"]
[]
[null,null,null,null,null,null,null,null,null,null,null,null,null,"Note that there is another version of this template available for co-incinerators"]
[]
[]
[]
[null,"Add photo"]
[]
[]
[]
[]
[null,null,null,null,null,null,null,null,null,null,null,null,null,"Notes:"]
[null,null,null,null,null,null,null,null,null,null,null,null,null,"This template may require adjustments by individual operators to meet specific reporting requirements as defined in the site Permit(s)"]
[]
[]
[]
[]
[]
[]
[]
[]
[]
[]
[]
[]
[]
[]
[null,"Annual Performance Report 2024"]
[]
[null,"Permit EPR/NP3638ZS"]
[]
[null,"Peterborough Energy Recovery Facility"]
[]
[]
[]
[null,"Viridor Peterborough Ltd"]
[]
[null,"Year:",2024]
[]
[null,"Address:","Fourth Drove,Peterborough, PE1 5UR"]
[]
[null,"Tel: ","01733 465284"]
[]
[null,"Email: ","Ellen.Raymond@viridor.com"]
[]
[null,"Prepared by:","E Raymond",null,null,"Position:","Technical Compliance Lead"]
[]
[null,"Approved by:","C Knowles",null,null,"Position:","Plant Manager"]
[]
[null,"Version:",1]
[]
[null,"Issue Date:","2025-01-24"]

{"sheet":"Contents","index":1,"n_rows":45,"n_cols":11,"rows_kept":45,"cut":false,"hidden":false,"merged":[[44,0,47,9],[37,1,37,6],[38,1,38,6],[39,1,39,6],[40,1,40,6],[41,1,41,6],[42,1,42,6],[36,1,36,6],[22,1,22,6],[23,1,23,6],[24,1,24,6],[27,1,27,6],[28,1,28,6],[29,1,29,6],[30,1,30,6],[31,1,31,6],[32,1,32,6],[35,1,35,6],[21,1,21,6],[9,1,9,6],[10,1,10,6],[11,1,11,6],[13,1,13,6],[14,1,14,6],[15,1,15,6],[16,1,16,6],[17,1,17,6],[18,1,18,6],[19,1,19,6],[20,1,20,6],[12,1,12,6],[4,10,7,14],[8,1,8,6],[3,1,3,6],[4,1,4,6],[5,1,5,6],[6,1,6,6],[7,1,7,6]]}
[{"$f":"+'Cover Page'!$B$29","v":"Annual Performance Report 2024"},null,null,null,{"$f":"+'Cover Page'!$B$33","v":"Peterborough Energy Recovery Facility"}]
[]
["Contents",null,null,null,null,null,null,null,null,null,"Notes:"]
["Section","Subject",null,null,null,null,null,"Page ",null,null,"Section references and Page nos. to be inserted"]
[null,"Facility Information",null,null,null,null,null,3,null,null,"Sections and Subjects may require adjustment by individual operators to meet specific reporting requirements as defined in the sites Permit(s)"]
[null,"Operational Data",null,null,null,null,null,4]
[null,"Operational Summary",null,null,null,null,null,6]
[null,"Performance Form 1",null,null,null,null,null,7]
[null,"Energy Form 1",null,null,null,null,null,8]
[null,"Permit Compliance",null,null,null,null,null,9]
[null,"Improvements",null,null,null,null,null,11]
[null,"Public Liaison",null,null,null,null,null,12]
[null,"Carbon dioxide and nitrous oxide emissions",null,null,null,null,null,13]
[null,"Residue Quality ",null,null,null,null,null,15]
[null,"Emissions to Water",null,null,null,null,null,16]
[null,"Emissions to Air (periodically monitored)",null,null,null,null,null,17]
[null,"Emissions to Air (continuously monitored)",null,null,null,null,null,18]
[null,"Hydrogen Chloride emissions",null,null,null,null,null,19]
[null,"Sulphur Dioxide emissions",null,null,null,null,null,20]
[null,"Oxides of Nitrogen emissions",null,null,null,null,null,21]
[null,"Total Organic Carbon emissions",null,null,null,null,null,22]
[null,"Particulate Matter emissions",null,null,null,null,null,23]
[null,"Carbon Monoxide emissions",null,null,null,null,null,24]
[null,"Ammonia emissions",null,null,null,null,null,25]
[]
[]
["Version Control"]
["Section","Information",null,null,null,null,null,"Date"]
[]
[]
[]
[]
[]
[]
["Distribution"]
["Copy","Name, Role",null,null,null,null,null,"No."]
[]
[]
[]
[]
[]
[]
[]
[]
["This report is required under the Industrial Emissions Directive’s Article 55(2) requirements on reporting and public information on waste incineration plants and co-incineration plants, which require the operator to produce an annual report on the functioning and monitoring of the plant and make it available to the public. "]

{"sheet":"Facility Info","index":2,"n_rows":22,"n_cols":11,"rows_kept":22,"cut":false,"hidden":false,"merged":[[4,0,17,8],[21,0,52,8],[4,10,13,13],[21,10,30,13]]}
[{"$f":"+'Cover Page'!$B$29","v":"Annual Performance Report 2024"},null,null,null,{"$f":"+'Cover Page'!$B$33","v":"Peterborough Energy Recovery Facility"}]
[]
["Plant Description and Design",null,null,null,null,null,null,null,null,null,"Notes:"]
[]
["Peterborough Energy from Waste (EfW) facility is located on the eastern side of Peterborough and occupies an area of 4.5 hectares within the Fengate Industrial Estate, approximately 2.5km south-east of the city centre. The ERF enables the city of Peterborough and area to divert about 110,000 (Variation to increased from 85,000) tonnes of residual waste from landfill each year.\n\nThe facility is a single line plant which has a capacity for 110,000 tonnes per year and generates electricity (on average 8.5-8.8MWh) to be used internally and exported to the National Grid. The facility design and layout of the steam turbine allows for potential heat export to local users, a small district heating scheme was commissioned in March 2017 serving Dodson House (next door building owned by Peterborough City Council) although this is currently dormant.\n\nViridor Energy Ltd are contracted by Viridor Peterborough Ltd to operate and maintain the plant on their behalf and that of Peterborough City Council.",null,null,null,null,null,null,null,null,null,"Include summary of plant design, design capacity, no. of combustion lines, electrical and heat capacity and any other general information that describes the facility, its location and purpose "]
[]
[]
[]
[]
[]
[]
[]
[]
[]
[]
[]
[]
[]
[]
["Summary of Operational Processes and Procedures"]
[]
["Incoming refuse collection vehicles and bulk transport vehicles enter the site and proceed to the incoming weighbridge. After weighing in, the vehicles continue to the enclosed reception hall where they will discharge their load into the waste storage bunker.\n\nVehicle loads are inspected randomly in the Tipping Hall to confirm the nature of incoming waste.\nOnce vehicles have deposited their waste they leave the site via a second weighbridge.\nPotential emissions of odour and dust from the tipping hall and refuse bunkers are controlled\nby forced draught fans located above the refuse bunkers. These draw air from the bunker hall\nand reception area into the furnace to feed the combustion process, creating a slight negative\npressure. An mist odour supression system complements this.\n\nThe waste combustion takes place on a Volund Dynagrate the heat generated being used to create superheated steam which is used to drive the steam turbine and generate electricity. Heat from turbine bleeds can be used for combined heat and power systems and is also used for pre-heating of combustion air and operation of the deaerator to maximise efficiency.\n\nCondensing of the steam takes place via air cooled condensing system and the condensate cycles back around in a closed system (other than necessary top up).\n\nEmission control is via injection of ammonia into the furnace for NOx control via SNCR technology. At the end of the boiler and gas path lime and activated carbon are added to remove acidic gases, dioxins, furans and heavy metals before this is all filtered by a bag filter system which removes the lime and carbon added and particulates from the combustion process producing APCr. Emissions are measured continuously in stack and by extractive stack measurements as required by the environmental permit.\n\nResidues from the process, IBA and APCr are both sent to specialist reprocessing sites. IBA has metals removed for recyling and is reprocessed into IBAA (Incinerator Bottom Ash Aggregate). The APCr is sent to OCO Technology (formally Carbon8) who use accelerated cabonation technology to produce a carbon negative aggregate material which encapsulates the absorbed substances from the APCr.\nMaintenance is controlled by a CMMS system and consists of planned preventative maintenance (ppm), derived from both experience of the plant and OEM requirements, and reactive maintenance. An annual shutdown period happens each summer during which maintenance and statutory inspections are carried out.\n\nThe plant operates a document control system meeting the requirements of the Viridor document management system and ISO 9001, 14001, 45001 and 50001",null,null,null,null,null,null,null,null,null,"Include summary of key processes and procedures such as (but not limited to); waste reception, control rooms, grate, bed and boiler, energy & heat  generation, cooling systems, residue management, emission controls, health and safety systems, maintenance"]

{"sheet":"Operational Data","index":3,"n_rows":72,"n_cols":10,"rows_kept":72,"cut":false,"hidden":false,"merged":[[5,9,7,9],[59,0,63,0],[35,1,45,1],[3,1,3,2],[7,1,21,1],[25,1,28,1],[30,1,31,1],[9,9,22,9],[23,9,27,9]]}
[{"$f":"+'Cover Page'!$B$29","v":"Annual Performance Report 2024"},null,null,null,{"$f":"+'Cover Page'!$B$33","v":"Peterborough Energy Recovery Facility"}]
[]
["Operational Data"]
["Plant Size",110000,null,"tonnes pa",null,"MWth",8.1,"MWe",null,"Notes:"]
["No. of combustion lines",1,null,"No. of Turbines:",null,1,null,null,null,"* - RDF to include SRF "]
[null,null,null,null,null,null,null,null,null,"** - Combusted tonnage = tonnes delivered in period + (tonnes in bunker at start of period – tonnes in bunker at end of period), or equivalent calculation depending on plant type"]
["Waste types received","Unit","Q1","Q2","Q3","Q4","Year Total","%"]
["Household / Local Authority (200301 & 200307)","tonnes",10170.300000000001,11884.12,12232.029999999999,11002.73,{"$f":"SUM(C8:F8)","v":45289.179999999993},{"$f":"IF(G8>0,G8/$G$20,\"-\")","v":0.49637994479111652}]
["Commercial & Industrial (200301 & 200307)",null,9597.56,7133.88,5076.5599999999995,6293.5199999999995,{"$f":"SUM(C9:F9)","v":28101.52},0.30799919420370292,null,"*** - CHP plants only"]
["Hazardous ",null,0,0,0,0,0,"-",null,"**** Availability Definition: 'the availability of a line is to be calculated by the number of hours the line reported Continuously Monitored emission levels to the Regulator through the calendar year divided by the total number of hours in that year. \n\nThe overall plant availability is calculated as the Mean of all lines in the plant. For clarity this includes periods of abnormal operation.'  \n\nRationale: The primary function of an Energy from Waste facility is the disposal of waste. It follows therefore that the availability of a plant is determined by the period of time a facility spends undertaking this activity."]
["Clinical (180104)",null,2519.12,3512.24,2624.02,2390.8599999999997,11046.239999999998,0.12106935920123577]
["Waste wood (biomass) ",null,0,0,0,0,0,"-"]
["Refuse Derived Fuel * - H'hold/LA",null,924.23,668.03,851.77,1000.0799999999999,{"$f":"SUM(C13:F13)","v":3444.1099999999997},3.7748246527195509E-2]
["Refuse Derived Fuel *  - C&I",null,397.86,104.31,220.82,857.14,1580.13,1.7318592258963116E-2]
["Plastic (20 01 39)",null,385.26,398.16,364.16,472.72,1620.3000000000002,1.7758864800489792E-2]
["Street Cleaning Residue (20 03 03)",null,46.28,73.36,25.36,12.46,157.46,1.7257982172962554E-3]
["Other [Please specify]"]
["Other [Please specify]"]
["Other [Please specify]",null,null,null,null,null,0,"-"]
["Total waste received",null,{"$f":"SUM(C8:C18)","v":24040.609999999997},{"$f":"SUM(D8:D18)","v":23774.1},{"$f":"SUM(E8:E18)","v":21394.719999999998},{"$f":"SUM(F8:F19)","v":22029.510000000002},91238.94]
["Rejected Waste ",null,null,null,11.44,null,{"$f":"SUM(C21:F21)","v":11.44},{"$f":"IF(G21>0,G21/$G$20,\"-\")","v":1.253850603700569E-4}]
["Unprocessed waste transferred out",null,null,null,null,null,{"$f":"SUM(C22:F22)","v":0},{"$f":"IF(G22>0,G22/$G$20,\"-\")","v":"-"}]
["Total waste combusted **",null,23552.04,23062,21040,23271.91,{"$f":"SUM(C23:F23)","v":90925.950000000012}]
[null,null,null,null,null,null,null,null,null,"Password for protected cells\nA password has been set to prevent accidental  editing of cells with formulae. \nIf you still need to make an edit for some reason then the password = 1234"]
["Energy Usage / Export","Unit","Q1","Q2","Q3","Q4","Year Total","KWh/te"]
["Power Generated","MWh",16968,16308,15088,16622,{"$f":"SUM(C26:F26)","v":64986},{"$f":"IF(G26>0,G26*1000/$G$23,\"-\")","v":714.71345638951243}]
["Power Exported",null,14855,14004,12958,14565,{"$f":"SUM(C27:F27)","v":56382},{"$f":"IF(G27>0,G27*1000/$G$23,\"-\")","v":620.08700486494774}]
["Power Used on site",null,2085,2235,1986,1974,{"$f":"SUM(C28:F28)","v":8280},{"$f":"IF(G28>0,G28*1000/$G$23,\"-\")","v":91.063112345815455}]
["Power Imported",null,28,48,144,84,304,{"$f":"IF(G29>0,G29*1000/$G$23,\"-\")","v":3.3433799701845288}]
["Parasitic Load","%",{"$f":"IF(C26>0,1-C27/(C26+C29),\"-\")","v":0.12597081666274412},{"$f":"IF(D26>0,1-D27/(D26+D29),\"-\")","v":0.14380044020542915},{"$f":"IF(E26>0,1-E27/(E26+E29),\"-\")","v":0.14929096638655459},{"$f":"IF(F26>0,1-F27/(F26+F29),\"-\")","v":0.12815754818628033},{"$f":"IF(G26>0,1-G27/(G26+G29),\"-\")","v":0.13643743299126976}]
["Thermal Energy Produced ***","MWh",null,null,null,null,{"$f":"SUM(C31:F31)","v":0},{"$f":"IF(G31>0,G31*1000/$G$23,\"-\")","v":"-"}]
["Thermal Energy Exported ***",null,null,null,null,null,0,{"$f":"IF(G32>0,G32*1000/$G$23,\"-\")","v":"-"}]
["R1 value (if applicable)","R1",null,null,null,null,0.81,null,null,"*Pending R1 report"]
[]
["Waste Disposal & Recovery","Unit","Q1","Q2","Q3","Q4","Year Total","% inputs"]
["APC Residues - produced","tonnes",560.20000000000005,567.29999999999995,520.23,591.8900000000001,{"$f":"SUM(C36:F36)","v":2239.62},{"$f":"IF(G36>0,G36/$G$23,\"-\")","v":2.4631252134291692E-2}]
["IBA - produced",null,4751.2,4672.8999999999996,4267.5,4464.5200000000004,{"$f":"SUM(C37:F37)","v":18156.12},{"$f":"IF(G37>0,G37/$G$23,\"-\")","v":0.19968028929035106}]
["Metals recycling",null,9.2799999999999994,3.68,2.6,0,{"$f":"SUM(C38:F38)","v":15.559999999999999},{"$f":"IF(G38>0,G38/$G$23,\"-\")","v":1.7112826426339233E-4}]
["13 02 05* mineral based, non-chlorinated engine, gear & lubricating oils",null,1.8,null,null,null,{"$f":"SUM(C39:F39)","v":1.8},{"$f":"IF(G39>0,G39/$G$23,\"-\")","v":1.9796328770829447E-5}]
["13 05 03* Interceptor sludge",null,null,null,87.68,null,{"$f":"SUM(C40:F40)","v":87.68},9.6430117034795892E-4]
["17 09 04 Mixed construction/demolition ",null,null,0.28000000000000003,0.56000000000000005,0.92,1.7600000000000002,1.9356410353699905E-5]
["17 08 02 gypsum-based construction materials other than those mentioned in 17 08 01",null,null,1.42,null,null,1.42,1.5617103808098785E-5]
["20 01 11 Textiles",null,null,null,null,0.3,0.3,3.2993881284715744E-6]
["20 01 35* WEEE",null,0.2,null,0.22739999999999999,0.20200000000000001,0.62939999999999996,6.922116293533363E-6]
["20 03 01 Mixed municiple",null,null,2.23,0.52,null,2.75,3.0244391177656101E-5]
["Total",null,{"$f":"SUM(C36:C45)","v":5322.6799999999994},{"$f":"SUM(D36:D45)","v":5247.8099999999995},{"$f":"SUM(E36:E45)","v":4879.3174000000008},{"$f":"SUM(F36:F45)","v":5057.8320000000012},{"$f":"SUM(C46:F46)","v":20507.6394}]
[]
["Raw Material Usage","Unit","Q1","Q2","Q3","Q4","Year Total","kg or Ltr /te"]
["Mains Water","ltrs",11740000,11518000,13857000,13163000,{"$f":"SUM(C49:F49)","v":50278000},{"$f":"IF(G49>0,G49/$G$23,\"-\")","v":552.95545441097943}]
["Other Water","ltrs",421000,86000,94000,98000,699000,{"$f":"IF(G50>0,G50/$G$23,\"-\")","v":7.6875743393387683}]
["Ammonia","kgs",95270,88000,70090,73320,326680,3.5928137126969797]
["Urea","kgs",null,null,null,null,"-","-"]
["Lime","kgs",{"$f":"373.32*1000","v":373320},{"$f":"334.38*1000","v":334380},{"$f":"313.07*1000","v":313070},{"$f":"376.64*1000","v":376640},{"$f":"SUM(C53:F53)","v":1397410},15.368659882024877]
["Carbon","kgs",6870,7600,6580,11260,{"$f":"SUM(C54:F54)","v":32310},0.35534410143638856]
["Fuel oil - (Burners)","ltrs",30039,23654,87732,112371,253796,2.7912383648452392]
["Fuel oil - (Mobile plant & other)","ltrs",13332,9692,3921,5512,32457,{"$f":"IF(G56>0,G56/$G$23,\"-\")","v":0.35696080161933963}]
[null,null,null,null,null,null,0]
[]
["Summary ","Line/Unit","Q1","Q2","Q3","Q4","Year Total",null,"Hrs in year "]
["Availability of waste combustion by line, hrs ****",{"$f":"+B5","v":1},2118,2054.1999999999998,1869.8,2038,{"$f":"SUM(C60:F60)","v":8080},{"$f":"+G60/$I$60","v":0.91985428051001816},{"$f":"24*366","v":8784}]
[null,2,null,null,null,null,0,{"$f":"+G61/$I$60","v":0}]
[null,3,null,null,null,null,0,0]
[null,4,null,null,null,null,0,0]
[null,5,null,null,null,null,{"$f":"SUM(C64:F64)","v":0},0]
["Overall Availability, mean avg. of all lines, hrs",null,{"$f":"AVERAGE(C60:C64)","v":2118},{"$f":"AVERAGE(D60:D64)","v":2054.1999999999998},1869.8,2038,{"$f":"SUM(G60:G64)","v":8080},{"$f":"+G65/$I$60","v":0.91985428051001816}]
["Hours of turbine operations, hrs",1,2130.9,2085.8000000000002,1886.5,2041,8144.2000000000007,{"$f":"+G66/$I$60","v":0.92716302367941716}]
["Hours of turbine operations, hrs",2,null,null,null,null,0,0]
["Hours of heat / steam export",null,null,null,null,null,0,{"$f":"IF(B68>0,G67/I60,\"n/a\")","v":"n/a"}]
["Net Calorific Value of waste","MJ/kg",9.6966666666666672,9.4500000000000011,9.6966666666666672,9.6766666666666676,{"$f":"AVERAGE(C69:F69)","v":9.6300000000000008}]
["Abnormal Events","qty.",0,2,0,0,2,{"$f":"IF(G70>0,\"yes\",\"no\")","v":"yes"}]
["Abnormal operation","hours",0,4,0,0,4,{"$f":"+(G71)/I60","v":4.5537340619307832E-4}]
["Permit Breaches","qty.",1,1,2,0,4,{"$f":"IF(G72>0,\"yes\",\"no\")","v":"yes"}]

{"sheet":"Operational Summary","index":4,"n_rows":55,"n_cols":11,"rows_kept":55,"cut":false,"hidden":false,"merged":[[4,10,13,13],[31,10,40,13],[44,1,44,8],[43,1,43,8],[44,10,52,13],[55,1,55,8],[45,1,45,8],[46,1,46,8],[47,1,47,8],[4,0,27,8],[31,0,41,8]]}
[{"$f":"+'Cover Page'!$B$29","v":"Annual Performance Report 2024"},null,null,null,{"$f":"+'Cover Page'!$B$33","v":"Peterborough Energy Recovery Facility"}]
[]
["Summary of Plant Operations and Maintenance during the reporting year",null,null,null,null,null,null,null,null,null,"Notes:"]
[]
["The boiler availability for 2024 was 92%, with a turbine availability of 92.7%. \nThere was no planned maintenance outage in 2024 however, there were several incidences of tube leaks and grate repairs which reduced overall availability. \nSee a breakdown of each quarter below, a detailed list of shutdowns is included in the table below (not including 'hot standby shutdowns')\n                                                                                                                                                                                                                                                                                                                                                                                                                         Q1:-   \nThere was a total boiler availability of 97% in Q1. Minor shutdowns included grab failures, feed chute blockages and ash discharger blockages. There was an emissions exceedance on January 22nd for a half hour average of SO2. See details in 'Permit Compliance' tab.                                                                                                                                                                                                                                                                                                                                                                                                                                                                                                                                                                                                         \n\nQ2:-      \nTotal boiler availability in Q2 was 94.1%. There were several shutdowns due to grate or riddling repairs and one incident of a tube leak during the quarter.\nThere was one emission exceedance on 24th May for a half hour average of SO2. See details in 'Permit Compliance' tab. There were two occurancse of abnormal operation. The first was on 24th May where the daily average for dust emissions was 5.74 mg/m3 due to elevated lime dosing to mitigate high SO2 emissions. The event lasted 2 hours. The second event was on June 18th for high dust emissions udring baghouse maintenance.\n                                                                                                                                                                                                                                                                              \nQ3:-                  \nThe total boiler availability in Q3 was 84.7%, this is the lowest quarter availability in the year. This is attributed to the three tube leaks throughout the quarter, resulting in several days downtime to allow for repair. Other minor shutdowns include crane repairs and an ash discharger blockage. \nThere were two permit breaches in Q3, the first was on 23rd July for a half hourly average exceedance of TOC. The second was on 9th September for a half hourly average exceedance of SO2.      \nWaste inspections throughout the quarter highlighted non-compliant waste being brought to site by one supplier. As a result, 11.4 tonnes of incoming waste was quaratined and rejected.                                                                                                                                                \n\nQ4:-\nThe total boiler availability in Q4 was 92.3%. Shutdowns included a grate riddling blockage, an ash discharger blockage and one tube leak requiring downtime for maintenance. \nThere were no permit breaches or abnormal operation occurences in Q4. \nThorough waste inspections continued in Q4, with non-conforming waste being rejected from site (textiles and mixed construction waste).\n\n                                                                         ",null,null,null,null,null,null,null,null,null,"Include summary of key operational and/or maintenance activity undertaken in the year, such as any major component upgrades and/or replacements "]
[]
[]
[]
[]
[]
[]
[]
[]
[]
[]
[]
[]
[]
[]
[]
[]
[]
[]
[]
[]
[]
[]
[]
[]
["Summary of Residue Handling for the reporting year"]
[]
["Johnsons Agrgregatescollect thee IBA. They remove and recycle the ferrous and non-ferrous metals and then create IBAA (Incinerator Bottom Ash Aggregate) from the remaining material. Their Aggregates team then utilise this in various construction and highways projects.\n\nAPCr is collected by direct transfer from the on site silo into transport tanker by Grundons and goes to the O.C.O Technology Ltd (formally Carbon8) site at Brandon (EPR/JP3332FK) (unless not possible due to operational issues at OCO in which case it is directed to one of their other plants) where it is taken through their accelerated carbonation technology. These carbonated wastes are blended with binders and fillers and pellitised to form an aggregate. \nIn November, to support the NOx trials, additional IBA and APCr samples were taken for comparative analysis, including  Ammoniacal Nitrogen Sampling. These samples were sent to WRc and nrm.                                                                                                                                                                                                                                                      \nPBR ERF was also involved in trials of  POP containing plastics and their impact on emissions and residues. These extra samples were sent to Wrc 18th September Industrail Safety Solutions carrying out POPS dust monitoring during shredding activity.",null,null,null,null,null,null,null,null,null,"Include in here a summary of residue handling regimes and destinations "]
[]
[]
[]
[]
[]
[]
[]
[]
[]
[]
[]
[{"$f":"+'Cover Page'!C39","v":2024},"Plant shut-downs"]
["Date","Reason for shut-down",null,null,null,null,null,null,null,null,"Provide a very brief reason for plant shut-down e.g. \"Shut-down prior to major outage\"; \"Emergency shut-down due to boiler tube leak\"\n\nThere is no need to include periods of hot-standby here (e.g. to clear feed chute hopper blockages).\n\n"]
["2024-02-24","Shutdown due to feed chute blockage"]
["2024-02-25","Shutdown due to ash discharger blockage"]
["2024-04-20","Shutdown due to riddlings system failure"]
["2024-05-01","Shutdown for Grate repairs and tube leak repair"]
["2024-06-18","Shutdown for grate riddling repairs"]
["2024-07-16","Shutdown for tube leak"]
["2024-08-12","Shutdown for tube leak"]
["2024-09-24","Shutdown for tube leak"]
["2024-11-28","Shutdown due to ash blockage"]
["2024-12-11","Shutdown for tube leak"]

{"sheet":"Perf. Form 1","index":5,"n_rows":57,"n_cols":10,"rows_kept":57,"cut":false,"hidden":false,"merged":[[50,0,50,1],[52,0,52,9],[53,0,54,9],[41,0,41,9],[42,0,43,9],[46,0,46,1],[46,2,46,9],[48,0,48,1],[49,0,49,1],[39,0,39,3],[39,4,39,5],[39,7,39,8],[40,0,40,3],[40,4,40,5],[40,7,40,8],[37,0,37,3],[37,4,37,5],[37,7,37,8],[38,0,38,3],[38,4,38,5],[38,7,38,8],[34,0,34,3],[34,7,34,8],[35,0,35,3],[35,4,35,5],[35,7,35,8],[36,0,36,3],[36,4,36,5],[36,7,36,8],[27,0,27,3],[27,4,27,5],[27,6,27,7],[27,8,27,9],[29,0,29,9],[30,0,31,9],[25,0,25,1],[25,2,25,3],[25,4,25,5],[25,6,25,7],[25,8,25,9],[26,0,26,3],[26,4,26,5],[26,6,26,7],[26,8,26,9],[21,0,21,1],[21,2,21,3],[21,4,21,5],[21,6,21,7],[21,8,21,9],[24,0,24,1],[24,2,24,3],[24,4,24,5],[24,6,24,7],[24,8,24,9],[22,0,22,1],[22,2,22,3],[22,4,22,5],[22,6,22,7],[22,8,22,9],[23,0,23,1],[23,2,23,3],[23,4,23,5],[23,6,23,7],[23,8,23,9],[19,0,19,1],[19,2,19,3],[19,6,19,7],[19,8,19,9],[20,0,20,1],[20,2,20,3],[20,4,20,5],[20,6,20,7],[20,8,20,9],[19,4,19,5],[17,0,17,1],[17,2,17,3],[17,4,17,5],[17,6,17,7],[17,8,17,9],[18,0,18,9],[15,0,15,1],[15,2,15,3],[15,4,15,5],[15,6,15,7],[15,8,15,9],[16,0,16,3],[16,4,16,5],[16,6,16,7],[16,8,16,9],[11,0,11,1],[11,2,11,3],[11,4,11,5],[11,6,11,7],[11,8,11,9],[14,0,14,1],[14,2,14,3],[14,4,14,5],[14,6,14,7],[14,8,14,9],[12,0,12,1],[12,2,12,3],[12,4,12,5],[12,6,12,7],[12,8,12,9],[13,0,13,1],[13,2,13,3],[13,4,13,5],[13,6,13,7],[13,8,13,9],[9,0,9,9],[10,0,10,1],[10,2,10,3],[10,4,10,5],[10,6,10,7],[10,8,10,9],[2,0,2,4],[2,6,2,8],[3,1,3,4],[5,3,5,4],[5,6,5,7],[8,0,8,1],[8,2,8,3],[8,4,8,5],[8,6,8,7],[8,8,8,9]]}
[{"$f":"+'Cover Page'!C39","v":2024}," Annual Reporting Performance Form 1"]
[]
[{"$f":"+'Cover Page'!B31","v":"Permit EPR/NP3638ZS"},null,null,null,null,"Operator: ",{"$f":"+'Cover Page'!B37","v":"Viridor Peterborough Ltd"}]
["Facility:",{"$f":"+'Cover Page'!B33:I33","v":"Peterborough Energy Recovery Facility"},null,null,null,"Form:","Performance 1"]
[]
["Reporting  Period from: ",null,null,"2024-01-01",null,"to:","2024-12-31"]
[]
[{"$f":"+A1","v":2024},"Annual Reporting of Waste Disposal and Recovery"]
["Waste Description",null,"Disposal Route(s)",null,"Disposal Tonnes",null,"Recovery Tonnes",null,"% / tonne of waste incinerated"]
["1) Hazardous Wastes"]
["APC Residues",null,"OCO Tecnology",null,null,null,{"$f":"'Operational Data'!G36","v":2239.62},null,{"$f":"IF((E11+G11)>0,(E11+G11)/'Operational Data'!$G$23, \"-\")","v":2.4631252134291692E-2}]
["IBA",null,"Johnsons",null,null,null,0,null,{"$f":"IF((E12+G12)>0,(E12+G12)/'Operational Data'!$G$23, \"-\")","v":"-"}]
[{"$f":"'Operational Data'!A39","v":"13 02 05* mineral based, non-chlorinated engine, gear & lubricating oils"},null,"LWOL",null,null,null,{"$f":"'Operational Data'!G39","v":1.8},null,{"$f":"IF((E13+G13)>0,(E13+G13)/'Operational Data'!$G$23, \"-\")","v":1.9796328770829447E-5}]
[{"$f":"'Operational Data'!A40","v":"13 05 03* Interceptor sludge"},null,"Augean",null,null,null,{"$f":"'Operational Data'!G40","v":87.68},null,{"$f":"IF((E14+G14)>0,(E14+G14)/'Operational Data'!$G$23, \"-\")","v":9.6430117034795892E-4}]
[{"$f":"'Operational Data'!A44","v":"20 01 35* WEEE"},null,"Blackmore Ricotech",null,null,null,{"$f":"'Operational Data'!G44","v":0.62939999999999996},null,{"$f":"IF((E15+G15)>0,(E15+G15)/'Operational Data'!$G$23, \"-\")","v":6.922116293533363E-6}]
[null,null,null,null,null,null,null,null,{"$f":"IF((E16+G16)>0,(E16+G16)/'Operational Data'!$G$23, \"-\")","v":"-"}]
["Total Hazardous Waste",null,null,null,{"$f":"SUM(E11:F16)","v":0},null,{"$f":"SUM(G11:H16)","v":2329.7293999999997},null,{"$f":"IF((E17+G17)>0,(E17+G17)/'Operational Data'!$G$23, \"-\")","v":2.5622271749704013E-2}]
[]
["2) Non-Hazardous Wastes"]
["IBA",null,"Johnsons",null,476.6,null,{"$f":"'Operational Data'!G37-476.6","v":17679.52},null,{"$f":"IF((E20+G20)>0,(E20+G20)/'Operational Data'!$G$23, \"-\")","v":0.19968028929035106}]
["Ferrous Metal",null,"Simms",null,null,null,{"$f":"'Operational Data'!G38","v":15.559999999999999},null,{"$f":"IF((E21+G21)>0,(E21+G21)/'Operational Data'!$G$23, \"-\")","v":1.7112826426339233E-4}]
[{"$f":"'Operational Data'!A41","v":"17 09 04 Mixed construction/demolition "},null,"Bourne Skips",null,null,null,{"$f":"'Operational Data'!G41","v":1.7600000000000002},null,{"$f":"IF((E22+G22)>0,(E22+G22)/'Operational Data'!$G$23, \"-\")","v":1.9356410353699905E-5}]
[{"$f":"'Operational Data'!A42","v":"17 08 02 gypsum-based construction materials other than those mentioned in 17 08 01"},null,"Bourne Skips",null,null,null,{"$f":"'Operational Data'!G42","v":1.42},null,{"$f":"IF((E23+G23)>0,(E23+G23)/'Operational Data'!$G$23, \"-\")","v":1.5617103808098785E-5}]
[{"$f":"'Operational Data'!A43","v":"20 01 11 Textiles"},null,"Bourne Skips",null,null,null,{"$f":"'Operational Data'!G43","v":0.3},null,{"$f":"IF((E24+G24)>0,(E24+G24)/'Operational Data'!$G$23, \"-\")","v":3.2993881284715744E-6}]
[{"$f":"'Operational Data'!A45","v":"20 03 01 Mixed municiple"},null,"PCC",null,null,null,{"$f":"'Operational Data'!G45","v":2.75},null,{"$f":"IF((E25+G25)>0,(E25+G25)/'Operational Data'!$G$23, \"-\")","v":3.0244391177656101E-5}]
[null,null,null,null,null,null,null,null,{"$f":"IF((E26+G26)>0,(E26+G26)/'Operational Data'!$G$23, \"-\")","v":"-"}]
["Total Non-Hazardous Waste",null,null,null,{"$f":"SUM(E20:F26)","v":476.6},null,{"$f":"SUM(G20:H26)","v":17701.309999999998},null,{"$f":"IF((E27+G27)>0,(E27+G27)/'Operational Data'!$G$23, \"-\")","v":0.19991993484808235}]
["TOTAL WASTE",null,null,null,{"$f":"+E27+E17","v":476.6},null,{"$f":"+G27+G17","v":20031.039399999998},null,{"$f":"IF((E28+G28)>0,(E28+G28)/'Operational Data'!$G$23, \"-\")","v":0.22554220659778637}]
[]
["Operator’s comments :"]
[]
[]
[]
[{"$f":"+A1","v":2024},"Annual Reporting of Water and Other Raw Material Usage"]
["Raw Material",null,null,null,"Usage",null,"Unit","Specific Usage",null,"Unit"]
["Mains Water",null,null,null,{"$f":"+'Operational Data'!G49/1000","v":50278},null,"m3",{"$f":"IF(E36>0,E36/'Operational Data'!$G$23,\"-\")","v":0.55295545441097937},null,"m3/te"]
["Total Water",null,null,null,{"$f":"+'Operational Data'!G50+'Operational Data'!G49/1000","v":749278},null,"m3",{"$f":"IF(E37>0,E37/'Operational Data'!$G$23,\"-\")","v":8.2405297937497473},null,"m3/te"]
["Urea / Ammonia",null,null,null,{"$f":"+'Operational Data'!G51","v":326680},null,"kg",{"$f":"IF(E38>0,E38/'Operational Data'!$G$23,\"-\")","v":3.5928137126969797},null,"kg/te"]
["Activated Carbon",null,null,null,{"$f":"'Operational Data'!G54","v":32310},null,"kg",{"$f":"IF(E39>0,E39/'Operational Data'!$G$23,\"-\")","v":0.35534410143638856},null,"kg/te"]
["Lime / hydrated lime / Sodium Bicarb.",null,null,null,{"$f":"'Operational Data'!G53","v":1397410},null,"kg",{"$f":"IF(E40>0,E40/'Operational Data'!$G$23,\"-\")","v":15.368659882024877},null,"kg/te"]
[]
["Operator’s comments :"]
[]
[]
[]
[{"$f":"+A34","v":2024},"Annual Reporting of other performance indicators "]
["Parameter",null,"Results by Line"]
[null,null,"A1","A2","A3","A4","A5",null,"Turbine 1","Turbine 2"]
["Operating hours for the year, hours",null,{"$f":"'Operational Data'!G60","v":8080}]
["Number of periods of abnormal operation, qty.",null,{"$f":"'Operational Data'!G70","v":2}]
["Cumulative hours of abnormal operation for this year, hours",null,{"$f":"'Operational Data'!G71","v":4}]
[]
["Operator’s comments :"]
[]
[]
[]
["Signed: ","E. Raymond",null,null,null,null,"Date:","2024-01-10"]

{"sheet":"Energy Form 1","index":6,"n_rows":29,"n_cols":8,"rows_kept":29,"cut":false,"hidden":false,"merged":[[15,0,15,2],[15,3,15,4],[15,6,15,8],[17,0,17,8],[18,0,24,8],[13,0,13,2],[13,3,13,4],[13,6,13,8],[14,0,14,2],[14,3,14,4],[14,6,14,8],[11,0,11,2],[11,3,11,4],[11,6,11,8],[12,0,12,2],[12,3,12,4],[12,6,12,8],[9,0,9,2],[9,3,9,4],[9,6,9,8],[10,0,10,2],[10,3,10,4],[10,6,10,8],[2,6,2,8],[4,1,4,4],[6,3,6,4],[6,6,6,7],[8,0,8,2],[8,3,8,4],[8,6,8,8]]}
[{"$f":"+'Cover Page'!C39","v":2024}," Annual Reporting of Energy Usage/Export"]
[]
[{"$f":"+'Cover Page'!B31","v":"Permit EPR/NP3638ZS"},null,null,null,null,"Operator: ",{"$f":"+'Cover Page'!B37","v":"Viridor Peterborough Ltd"}]
[]
["Facility:",{"$f":"+'Cover Page'!B33:I33","v":"Peterborough Energy Recovery Facility"},null,null,null,"Form:","Energy 1"]
[]
["Reporting  Period from: ",null,null,{"$f":"+'Perf. Form 1'!D6:E6","v":"2024-01-01"},null,"to:",{"$f":"+'Perf. Form 1'!G6:H6","v":"2024-12-31"}]
[]
["Energy Source",null,null,"Energy Usage",null,"Unit","Specific Usage (KWh/tonne incinerated"]
["Electricity Produced",null,null,{"$f":"+'Operational Data'!G26","v":64986},null,"MWh",{"$f":"+'Operational Data'!H26","v":714.71345638951243}]
["Electricity Imported   ",null,null,{"$f":"+'Operational Data'!G29","v":304},null,"MWh",{"$f":"+'Operational Data'!H29","v":3.3433799701845288}]
["Electricity Exported",null,null,{"$f":"+'Operational Data'!G27","v":56382},null,"MWh",{"$f":"+'Operational Data'!H27","v":620.08700486494774}]
["Gas Oil (Fuel oil & White diesel)",null,null,{"$f":"'Operational Data'!G55+'Operational Data'!G56","v":286253},null,"tonnes"]
["Steam/hot water exported",null,null,{"$f":"+'Operational Data'!G32","v":0},null,"GWh",{"$f":"+'Operational Data'!H32","v":"-"}]
[]
[]
[]
["Operator’s comments :"]
[]
[]
[]
[]
[]
[]
[]
[]
[]
[]
["Signed: ","E. Raymond",null,null,null,null,"Date:","2024-01-10"]

{"sheet":"Permit Compliance","index":7,"n_rows":33,"n_cols":18,"rows_kept":33,"cut":false,"hidden":false,"merged":[[26,1,26,2],[27,1,27,2],[28,0,28,8],[19,7,19,8],[19,1,19,2],[19,3,19,5],[21,3,21,5],[22,3,22,5],[25,3,25,5],[26,3,26,5],[27,3,27,5],[21,1,21,2],[23,1,23,2],[24,1,24,2],[23,3,23,5],[24,3,24,5],[8,11,20,11],[30,0,30,10],[18,0,18,10],[35,1,35,3],[35,4,35,6],[35,7,35,9],[31,1,31,3],[31,4,31,6],[31,7,31,9],[32,1,32,3],[32,4,32,6],[32,7,32,9],[22,1,22,2],[25,1,25,2],[14,0,14,1],[14,2,14,4],[36,1,36,3],[36,4,36,6],[36,7,36,9],[33,1,33,3],[33,4,33,6],[33,7,33,9],[34,1,34,3],[34,4,34,6],[34,7,34,9],[14,5,14,8],[15,0,15,1],[16,2,16,4],[16,5,16,8],[15,2,15,4],[15,5,15,8],[16,0,16,1],[7,0,7,1],[7,2,7,8],[8,0,8,1],[8,2,8,4],[8,5,8,8],[37,4,37,8],[9,0,9,1],[9,2,9,4],[9,5,9,8],[10,0,10,1],[10,2,10,4],[10,5,10,8],[11,0,11,1],[11,2,11,4],[11,5,11,8],[12,0,12,1],[12,2,12,4],[12,5,12,8],[13,0,13,1],[13,2,13,4],[13,5,13,8]]}
[{"$f":"+'Cover Page'!$B$29","v":"Annual Performance Report 2024"},null,null,null,{"$f":"+'Cover Page'!$B$33","v":"Peterborough Energy Recovery Facility"}]
[]
["Summary of Permit Compliance"]
[]
["Compliance with permit limits for continuously monitored pollutants"]
[]
["The plant met its emission limits as shown in the table below:"]
["Substance",null,"Percentage time compliant during operationNote 1",null,null,null,null,null,null,null,null,"Notes:",null,null,"Day","year","%"]
[null,null,"Half-hourly limit",null,null,"Daily limit",null,null,null,null,null,"Note 1: Please report to 2 decimal places, i.e. xx.xx%\n\nNote 2: Please enter into this table any permit non-compliances that the EA has given a CCS score for. Please also enter any other non-compliances which you have notified to the EA (e.g. ELV exceedances) but which have not yet been assessed by the EA. There is no need to enter any notifications which were subsequently assessed by the EA not to be permit breaches.  \n\nNote 3: Please enter information here (rather than just referencing the notifications that were sent to the EA) including where relevant the incineration line reference, pollutant and value of the measured result for any ELV exceedances.   \n\n","SO2",3,{"$f":"2*24","v":48},{"$f":"O9*366","v":17568},{"$f":"(N9/P9)*100","v":1.7076502732240439E-2},{"$f":"100-Q9","v":99.982923497267763}]
["Particulates",null,1,null,null,1,null,null,null,null,null,null,"VOC",1,{"$f":"2*24","v":48},{"$f":"O10*366","v":17568},{"$f":"(N10/P10)*100","v":5.6921675774134787E-3},{"$f":"100-Q10","v":99.994307832422592}]
["Oxides of nitrogen",null,1,null,null,1]
["Sulphur dioxide",null,0.99980000000000002,null,null,1]
["Carbon monoxide",null,"100% 95% of 10-min averages",null,null,1]
["Total organic carbon",null,0.99990000000000001,null,null,1]
["Hydrogen chloride",null,1,null,null,1]
["Hydrogen fluoride",null,1,null,null,1]
[]
[]
["Summary of non-compliances under the permit Note 2"]
["Date","Summary of non-compliance Note 3",null,"Reason ",null,null,"Measures taken to prevent reoccurrence","CCS score if applicable*"]
[null,null,null,null,null,null,null,"Impact","Root cause"]
["22nd January","SO2 - 30 min average of 312.4mg/Nm3 at 11:30 - 11:59.",null,"Mitigation systems responding correctly, cause thought to be waste related",null,null,"Lime abatement system taken into manual control. Delivery rate of lime was increased to 100% maximum rate. Front end waste achieving good blending and shredding. Abatement system operating well, good deliver and flow of lime. ",0.1]
["24th May","Dust - Daily average of 5.74mg/Nm3. - Abnormal Operation  ",null,"Baghouse failure",null,null,"Baghouses isolated alternately to determine area of mitigation failure. Baghouse 1 isolated and remedial works scheduled for w/c 27th June",0]
["24th MAY","SO2 breach 1/2 limit 200mg/Nm3.  Measured 1/2 breach was 233.6mg/Nm3 at 04:59 hours",null,"Mitigation systems responding correctly, asumption was that the filter bags within baghouses were failing. Invetigation confirmed damaged bags- evidence of scorching through friction.",null,null,"Planned remedial work for w/c 27th June. Design changes for consideration and potential implementaion during outage April 2025",0.1]
["23rd July","VOC - 30 min average of 23.7 mg/m3 at 20:30 to 20:59",null,"Large explosions on the grate cause reactive high CO,SO2 & TOC. The CO & SO2 were brought under control by putting secondary air into manual, but theTOC was not retrievable. ",null,null,"Explosion was caused by pressurised gas bottles combusting on the grate, and possible the introduction of indurial cleaning",0.1]
["9th September","SO2 - 30 min average of 237.5 mg/Nm3 at 13:30 to 13:59",null,"Cause considered to be plasterboard and gypsum, following immediate intrusive examinationof waste from provider. ",null,null,"The waste recovered was quarantined and collected by the waste supplier under a new WTN. Communications to the contract manager about educating the waste suppliers and checking their EWC codes as per contractual agreement for correctness.",0.1]
[]
[]
["*If the Environment Agency (EA) has given a Compliance Classification Scheme (CCS) score due to a permit non-compliance it should be entered here (CCS4 = No impact; CCS3 = Minor impact; CCS2 = Significant impact; CCS1 = Major impact). If the EA has not yet assessed a non-compliance which you have notified to them, these columns should be left blank. "]
[]
["Summary of any complaints received and actions to taken to resolve them."]
["Date","Summary of complaint [including Line/Reference]",null,null,"Reason (including whether substantiated by the operator or the EA)",null,null,"Measures taken to prevent reoccurrence"]
[null,"None"]

{"sheet":"Improvements","index":8,"n_rows":27,"n_cols":5,"rows_kept":27,"cut":false,"hidden":false,"merged":[[25,0,25,8],[26,0,29,8],[4,0,4,8],[5,0,9,8],[11,0,11,8],[12,0,17,8],[19,0,19,8],[20,0,23,8]]}
[{"$f":"+'Cover Page'!$B$29","v":"Annual Performance Report 2024"},null,null,null,{"$f":"+'Cover Page'!$B$33","v":"Peterborough Energy Recovery Facility"}]
[]
["Summary of Plant Improvements"]
[]
["Summary of any efficiency improvements that have been completed within the year."]
["Energy Group identified the main stairwell in the admin building to replaced the bulk head and fluorescent lighitng with LED's.                                                                                                                           \nTimers of some electrical domestic items being used, ie coffee machines."]
[]
[]
[]
[]
[]
["Summary of any permit improvement conditions that have been completed within the year and the resulting environmental benefits."]
["The diesel tank/yellow plant fuel distribution bund was previously open to weather conditions and the risk of rain fall filling the bund and over flowing, regular contractural cleaning in place to mitigate that risk. TIn September, the bund now has a cover to reduce the risk of the bund filling with rainwater  and becoming ineffective in the event of a spill."]
[]
[]
[]
[]
[]
[]
["Summary of any changes to the plant or operating techniques which required a variation to the permit and a summary of the resulting environmental impact."]
["None"]
[]
[]
[]
[]
["Summary of any other improvements made to the plant or planned to be made and a summary of the resulting environmental benefits."]
["None"]

{"sheet":"Public Liasion","index":9,"n_rows":26,"n_cols":5,"rows_kept":26,"cut":false,"hidden":false,"merged":[[16,0,16,1],[16,2,16,8],[5,0,5,1],[5,2,5,8],[6,0,7,1],[6,2,7,8],[8,0,9,1],[8,2,9,8],[10,0,11,1],[10,2,11,8],[12,0,13,1],[12,2,13,8],[15,0,15,8],[17,0,18,1],[17,2,18,8],[20,0,21,1],[20,2,21,8],[25,0,25,8],[19,2,19,8],[23,0,23,1],[23,2,23,8]]}
[{"$f":"+'Cover Page'!$B$29","v":"Annual Performance Report 2024"},null,null,null,{"$f":"+'Cover Page'!$B$33","v":"Peterborough Energy Recovery Facility"}]
[]
["Details of Public & Stakeholder Liaison"]
[]
["Summary of events held during the reporting year."]
["Date",null,"Description"]
["Bi Monthly",null,"Client liaisons with Peterborough City Council"]
[]
["Planned visits for April and November and as requested.",null,"Heritage open days for general public. Organised school/college tours."]
[]
["Quarterly",null,"Viridor in Peterborough Meetings for the Viridor in Peterborough community fund - funding local projects based around sustainability, local need, community involvement, value for money and education"]
[]
[null,null,"We will hold community liaison meetings on request after no attendance by local companies or residents since August 2016."]
[]
[]
["List of events planned for next year"]
["Date",null,"Description"]
["Bi Monthly",null,"Client liaisons with Peterborough City Council"]
[]
["Various",null,"Community and educational visits arranged through the visitor centre"]
["Quarterly",null,"Viridor in Peterborough Meetings for the Viridor in Peterborough community fund - funding local projects based around sustainability, local need, community involvement, value for money and education"]
[]
[]
[]
[]
["If you wish to be involved in the public liasion programme, please contact Hayley Janceski hjanceski@viridor.co.uk tel/ 07880 299 734"]

{"sheet":"CO2 N2O","index":10,"n_rows":25,"n_cols":6,"rows_kept":25,"cut":false,"hidden":false,"merged":[[22,2,22,3],[25,1,25,3],[16,2,16,3],[4,0,4,3],[9,0,9,3],[17,0,17,3],[13,0,13,3],[12,0,12,1],[8,2,8,3],[11,2,11,3],[19,2,19,3]]}
[{"$f":"+'Cover Page'!$B$29","v":"Annual Performance Report 2024"},null,{"$f":"+'Cover Page'!$B$33","v":"Peterborough Energy Recovery Facility"}]
[]
["Carbon dioxide emissions and biogenic content of waste inputs",null,null,null,null,"Notes:"]
[]
["Carbon dioxide emissions (all types of plant)"]
[null,"Annual mass of carbon dioxide released\n","tonnes ",114745.57]
[null,"Annual mass of carbon dioxide released per tonne of waste burned","t CO2 / t waste ",{"$f":"D6/('Operational Data'!G23)","v":1.2619672381756801}]
[null,"Annual mass of carbon dioxide released per MWh of energy exported","t CO2 / MWh export ",{"$f":"D6/('Operational Data'!G27)","v":2.0351454364868222}]
[null,"Description of how annual carbon dioxide mass emission has been calculated. \nSee Note 1","A mass emission calculation using the percent of CO2 measured in accordance with EN14181 and the stack flow measured in accordance with 16911-2.",null,null,"Note 1: All permits require operators to continuously monitor CO2 to EN14181 and flow to BS EN 16911-2 (unless otherwise agreed in writing). Operators must therefore use the results from these instruments to calculate their annual CO2 emissions. Where an operator does not have a flow meter calibrated to BS EN 16911-2, the averaged flow measurement from that year's periodic monitoring can be used instead. If the plant does not have calibrated CO2 CEMS, a suitably justified emissions factor can be used."]
["Nitrous oxide emissions (only plants which use ammonia or urea to abate NOx emissions)"]
[null,"Annual mass emissions of nitrous oxide","tonnes N2O",7.0000000000000007E-2]
[null,"Description of how annual nitrous oxide mass emission has been calculated\nSee Note 2","A mass emission calculation using the concentration of Nitrous Oxide measured in accordance with EN14181 and the stack flow measured in accordance with 16911-2.",null,null,"Note 2: All permits require operators to continuously monitor N2O to EN14181 and flow to BS EN 16911-2, unless otherwise agreed in writing. Operators must therefore use the results from these instruments to calculate their annual N2O emissions. Where an operator does not have a flow meter calibrated to BS EN 16911-2, the averaged flow measurement from periodic monitoring can be used instead. If the plant does not have calibrated N2O CEMS, data from periodic monitoring or a suitably justified emissions factor can be used instead."]
["Total annual carbon dioxide + nitrous oxide emissions. \nSee Note 3. ",null,"tonnes CO2e",{"$f":"D6+(D11*265)","v":114764.12000000001},null,"Note 3: Total annual carbon dioxide and nitrous oxide emissions reported as carbon dioxide equivalent where 1 tonne nitrous oxide is equivalent to 265 tonnes carbon dioxide."]
["Biogenic CO2 emissions (See Note 4)",null,null,null,null,"Note 4: Only plants combusting residual municipal waste, refuse derived fuel or solid recovered fuel need complete this section. "]
[null,"Percentage of total carbon dioxide emissions arising from biogenic waste","%",0.49540000000000001]
[null,"No. of measurements undertaken","Number",2]
[null,"Description of how percentage biogenic carbon dioxide emissions have been measured or calculated.\nSee Note 5","Result of C14 sampling (Installed sampler).\nFigure is the annual average figure from the monthly cartiridge laboratory results.",null,null,"Note 5: The results from C14 sampling should be used if this is carried out at the plant (either via an installed sampler or from spot samples).  \nOtherwise, as an approximation (and in lieu of any more accurate metrics which may be developed in future), the measured or estimated biogenic fraction by net calorific value (see Note 6) can be assumed to be the same as the biogenic CO2 fraction of the total CO2 emissions from the plant. "]
["Biogenic fraction of waste feedstock (See Note 4)"]
[null,"Yearly average biogenic percentage of the waste by net calorific value (NCV)","%",46.8]
[null,"Description of how biogenic percentage (by NCV) has been calculated or estimated. \nSee Note 6","Waste Sampling\nThe method used is the selective dissolution method as defined in BS EN ISO 21644:2021. This method involves treatment of the sample with concentrated sulphuric acid and hydrogen peroxide. Generally, the biomass in the sample will selectively dissolve leaving a non-biomass residue. The original mass of sample and mass of residue are measured. The result is calculated from the mass values and the ash content to give a result in %.",null,null,"Note 6: If C14 sampling is carried out at the plant, the methodology set out in the embedded document entitled \"Renewable Energy Association Energy Content of Fuels - Description of Method\" embedded below can be used to calculate the biogenic percentage by net calorific value. Otherwise, data from waste sampling or BIOMA software can be used; or if none of these are available, an estimated figure with justification or a figure assumed on the basis of up-to-date industry data can be used. "]
[null,"Yearly average biogenic percentage of the waste by mass","%",43]
[null,"If waste sampling undertaken, no. of samples used to ascertain average biogenic percentages above","Number",1]
[null,"Description of how biogenic percentage (by mass) has been calculated or estimated. \nSee Note 7","Waste Sampling ",null,null,"Note 7: Where available, data from waste sampling should be used; otherwise, an estimated figure with justification can be used, or a figure assumed on the basis of up-to-date industry data. "]
[]
[null,"Comments:"]

{"sheet":"Residue Quality ","index":11,"n_rows":33,"n_cols":6,"rows_kept":33,"cut":false,"hidden":false,"merged":[[32,0,37,6],[28,3,28,4],[31,0,31,6],[23,0,24,1],[25,0,25,1],[26,0,26,1],[27,0,27,1],[28,0,28,1],[25,3,25,4],[26,3,26,4],[25,5,25,6],[26,5,26,6],[27,5,27,6],[28,5,28,6],[29,0,29,6],[27,3,27,4],[23,2,24,2],[24,3,24,4],[24,5,24,6],[23,3,23,6],[22,0,22,6],[5,0,6,6],[7,0,8,6],[9,0,10,6],[14,0,15,1],[14,2,15,6],[16,0,17,1],[16,2,17,6],[18,0,19,1],[18,2,19,6],[12,0,12,6],[13,0,13,1],[13,2,13,6]]}
[{"$f":"+'Cover Page'!$B$29","v":"Annual Performance Report 2024"},null,null,null,{"$f":"+'Cover Page'!$B$33","v":"Peterborough Energy Recovery Facility"}]
[]
["Residue Quality Monitoring Requirements"]
[]
["Summary of monitoring undertaken and compliance"]
["IBA undergoes quarterly sampling as required by permit condition 3.5.1c and table 3.5 including TOC, dioxins & furans. TOC has a limit of <3%."]
[]
["24 samples of IBA are taken each year (including the 4 permit complaince samples) to undergo basic hazard analysis as required by the ESA protocol."]
[]
["APCr is sampled quarterly as per permit condition 3.5.1c and table 3.5"]
[]
[]
["Commentary on any specific events"]
["Date & Event",null,"Description"]
[]
[]
[]
[]
[]
[]
[]
[]
["Residue Quality Monitoring Results"]
["Parameter (unit) ",null,"Limit*","Normal Operation "]
[null,null,null,"Bottom ash  ",null,"APC Residues"]
["Loss on Ignition (average %)",null,"-",4.8]
["Total Organic Carbon (average %)",null,"<3%",1]
["No. of Assessments Undertaken",null,"---","4 permit compliance\n20 ESA hazard assessments ",null,4]
["No. of Hazardous Results",null,"---","nil"]
["* The permit will specify a limit of either 5% loss on ignition or 3% total organic carbon. If both are measured anyway, please enter the results here, even where the limit does not apply. "]
[]
["Comments :"]
["Additional 'free lime' analysis added to the APCr sampling from July 2024. \n4th September 2024 Lime supplier changed. Usualsupplier 'Singlton Birch (SB)' ceased production 4th September. New supplier from 'Ultra Lime', from Buxton. Specification is different, densisty of lime is 400-500kg/m3, compared to SB 300kg/m3. "]

{"sheet":"Water","index":12,"n_rows":25,"n_cols":9,"rows_kept":25,"cut":false,"hidden":false,"merged":[[29,0,29,2],[29,3,29,4],[26,0,26,2],[26,3,26,4],[27,0,27,2],[27,3,27,4],[28,0,28,2],[28,3,28,4],[23,0,23,2],[23,3,23,4],[24,0,24,2],[24,3,24,4],[25,0,25,2],[25,3,25,4],[21,0,21,8],[22,0,22,2],[22,3,22,4],[14,0,15,1],[14,2,15,8],[16,0,17,1],[16,2,17,8],[18,0,19,1],[18,2,19,8],[5,0,6,8],[7,0,8,8],[9,0,10,8],[12,0,12,8],[13,0,13,1],[13,2,13,8]]}
[{"$f":"+'Cover Page'!$B$29","v":"Annual Performance Report 2024"},null,null,null,{"$f":"+'Cover Page'!$B$33","v":"Peterborough Energy Recovery Facility"}]
[]
["Emissions to Water"]
[]
["Summary of monitoring undertaken and compliance"]
["Samples and visual checks undertaken monthly. The Penstocks remains closed unless otherwise directed. "]
[]
["Qtr PPM operational checks on the penstock gate valves."]
[]
[]
[]
[]
["Commentary on any specific events"]
["Date & Event",null,"Description"]
[]
[]
[]
[]
[]
[]
[]
["Emissions to Water / Sewer"]
["Parameter",null,null,"Monitoring Frequency",null,"Limit","Target","Max.","Average"]
["W1 Emission to water course - No limit set. Uncontaminated water, free of visible oil and grease",null,null,"-",null,"None"]
["S1 Emission to Anglican Water - No limits set in permit",null,null,"-",null,"None"]

{"sheet":"Air (periodic)","index":13,"n_rows":39,"n_cols":19,"rows_kept":39,"cut":false,"hidden":false,"merged":[[13,10,14,12],[15,10,16,10],[15,11,16,11],[15,12,16,12],[18,3,18,4],[13,3,13,4],[14,3,14,4],[15,3,15,4],[16,3,16,4],[17,3,17,4],[21,3,21,4],[22,3,22,4],[23,3,23,4],[24,3,24,4],[31,3,31,4],[25,3,25,4],[26,3,26,4],[28,3,28,4],[38,0,38,9],[19,0,19,1],[20,0,20,1],[21,0,21,1],[34,3,34,4],[35,3,35,4],[33,0,33,1],[34,0,34,1],[35,0,35,1],[36,0,36,1],[24,0,24,1],[32,3,32,4],[27,3,27,4],[33,3,33,4],[19,3,19,4],[20,3,20,4],[39,0,40,9],[25,0,25,1],[26,0,26,1],[22,0,22,1],[23,0,23,1],[37,0,37,1],[27,0,27,1],[28,0,28,1],[29,0,29,1],[30,0,30,1],[31,0,31,1],[32,0,32,1],[37,3,37,4],[29,3,29,4],[30,3,30,4],[36,3,36,4],[16,0,16,1],[17,0,17,1],[18,0,18,1],[13,0,13,1],[14,0,14,1],[15,0,15,1],[12,0,12,1],[11,3,11,4],[12,3,12,4],[9,0,10,1],[9,5,9,9],[9,3,10,4],[9,2,10,2],[5,10,8,12],[9,10,11,12],[8,0,8,9],[5,0,6,9],[11,0,11,1],[11,14,11,15],[12,14,12,15],[13,14,13,15],[14,14,14,15],[15,14,15,15],[16,14,16,15],[17,14,17,15],[18,14,18,15],[19,14,19,15],[20,14,20,15],[21,14,21,15],[22,14,22,15],[23,14,23,15],[24,14,24,15],[25,14,25,15],[26,14,26,15],[27,14,27,15],[28,14,28,15],[29,14,29,15],[30,14,30,15],[36,14,36,15],[37,14,37,15],[31,14,31,15],[32,14,32,15],[33,14,33,15],[34,14,34,15],[35,14,35,15]]}
[{"$f":"+'Cover Page'!$B$29","v":"Annual Performance Report 2024"},null,null,null,{"$f":"+'Cover Page'!$B$33","v":"Peterborough Energy Recovery Facility"}]
[]
["Emissions to Air (periodically monitored)"]
[]
["Summary of monitoring undertaken, standards used and compliance",null,null,null,null,null,null,null,null,null,"Notes:"]
["Biannual 1: 8th to 13th April 2024                                                                                                                                          \nBiannual 2: 7th to 9th October 2024                                                                                                                                   \nResults shown are the average of the biannual 1 and biannual 2 samples",null,null,null,null,null,null,null,null,null,"Template may require adjustment for any bespoke monitoring requirements of permit - please also check that all default ELV values, reference periods and the stated oxygen reference value match those for your plant, and edit if necessary!"]
[]
[]
["Results of emissions to air that are periodically monitored - oxygen reference 11% "]
["Substance",null,"Ref. Period","Emission Limit Value",null,"Average",null,null,null,null,"User to add additional tables as necessary, depending on whether quarterly or bi-annual reporting is required for the compliance year"]
[null,null,null,null,null,"Line 1",null,null,null,null,null,null,null,null,null,null,"Bi 1","Bi 2","AVERAGE"]
["Hydrogen fluoride",null,"1 hr","1 mg/m3",null,0.42000000000000004,null,null,null,null,null,null,null,null,"Hydrogen fluoride",null,0.8,0.04,{"$f":"AVERAGE(Q12:R12)","v":0.42000000000000004}]
["Cd and Tl and their compounds",null,"0.5-8hrs","0.02 mg/m3",null,4.8999999999999998E-3,null,null,null,null,null,null,null,null,"Cd and Tl and their compounds",null,5.0000000000000001E-4,9.2999999999999992E-3,{"$f":"AVERAGE(Q13:R13)","v":4.8999999999999998E-3}]
["Hg and its compounds",null,"0.5-8hrs","0.02 mg/m3",null,2.65E-3,null,null,null,null,null,null,null,null,"Hg and its compounds",null,3.0000000000000001E-3,2.3E-3,2.65E-3]
["Sb, As, Pb, Cr, Co, Cu, Mn, Ni, V and their compounds",null,"0.5-8hrs","0.3 mg/m3",null,1.4999999999999999E-2,null,null,null,null,null,null,null,null,"Sb, As, Pb, Cr, Co, Cu, Mn, Ni, V and their compounds",null,1.0999999999999999E-2,1.9E-2,1.4999999999999999E-2]
["Dioxins & Furans (I-TEQ)",null,"6-8hrs","0.06 ng/m3",null,1.65E-3,null,null,null,null,null,null,null,null,"Dioxins & Furans (I-TEQ)",null,1.2999999999999999E-3,2E-3,1.65E-3]
["PCBs (WHO-TEQ Humans / Mammals)",null,"6-8hrs","None set ng/m3",null,3.0000000000000003E-4,null,null,null,null,null,null,null,null,"PCBs (WHO-TEQ Humans / Mammals)",null,2.0000000000000001E-4,4.0000000000000002E-4,3.0000000000000003E-4]
["PCBs (WHO-TEQ Fish)",null,"6-8hrs","None set ng/m3",null,2.0000000000000002E-5,null,null,null,null,null,null,null,null,"PCBs (WHO-TEQ Fish)",null,2.0000000000000002E-5,2.0000000000000002E-5,2.0000000000000002E-5]
["PCBs (WHO-TEQ Birds)",null,"6-8hrs","None set ng/m3",null,1.3500000000000001E-3,null,null,null,null,null,null,null,null,"PCBs (WHO-TEQ Birds)",null,1.6999999999999999E-3,1E-3,1.3500000000000001E-3]
["Dioxins & Furans (WHO-TEQ Humans / Mammals)",null,"6-8hrs","None set ng/m3",null,1.5999999999999999E-3,null,null,null,null,null,null,null,null,"Dioxins & Furans (WHO-TEQ Humans / Mammals)",null,1.1999999999999999E-3,2E-3,1.5999999999999999E-3]
["Dioxins & Furans (WHO-TEQ Fish)",null,"6-8hrs","None set ng/m3",null,2.15E-3,null,null,null,null,null,null,null,null,"Dioxins & Furans (WHO-TEQ Fish)",null,1.2999999999999999E-3,3.0000000000000001E-3,2.15E-3]
["Dioxins & Furans (WHO-TEQ Birds)",null,"6-8hrs","None set ng/m3",null,4.3E-3,null,null,null,null,null,null,null,null,"Dioxins & Furans (WHO-TEQ Birds)",null,3.5999999999999999E-3,5.0000000000000001E-3,4.3E-3]
["Anthanthrene",null,"6-8hrs","None set µg/m3",null,1.3500000000000001E-3,null,null,null,null,null,null,null,null,"Anthanthrene",null,1.4E-3,1.2999999999999999E-3,1.3500000000000001E-3]
["Benzo(a)anthracene",null,"6-8hrs","None set µg/m3",null,1.15E-3,null,null,null,null,null,null,null,null,"Benzo(a)anthracene",null,0,2.3E-3,1.15E-3]
["Benzo(a)pyrene",null,"6-8hrs","None set µg/m3",null,6.4999999999999997E-4,null,null,null,null,null,null,null,null,"Benzo(a)pyrene",null,0,1.2999999999999999E-3,6.4999999999999997E-4]
["Benzo(b)fluoranthene",null,"6-8hrs","None set µg/m3",null,6.4999999999999997E-4,null,null,null,null,null,null,null,null,"Benzo(b)fluoranthene",null,0,1.2999999999999999E-3,6.4999999999999997E-4]
["Benzo(b)naptho(2,1-d) thiophene",null,"6-8hrs","None set µg/m3",null,1.3500000000000001E-3,null,null,null,null,null,null,null,null,"Benzo(b)naptho(2,1-d) thiophene",null,1.4E-3,1.2999999999999999E-3,1.3500000000000001E-3]
["Benzo(c)phenanthrene",null,"6-8hrs","None set µg/m3",null,1.3500000000000001E-3,null,null,null,null,null,null,null,null,"Benzo(c)phenanthrene",null,1.4E-3,1.2999999999999999E-3,1.3500000000000001E-3]
["Benzo(ghi)perylene",null,"6-8hrs","None set µg/m3",null,1.8500000000000001E-3,null,null,null,null,null,null,null,null,"Benzo(ghi)perylene",null,0,3.7000000000000002E-3,1.8500000000000001E-3]
["Benzo(k)fluoranthene",null,"6-8hrs","None set µg/m3",null,1.3500000000000001E-3,null,null,null,null,null,null,null,null,"Benzo(k)fluoranthene",null,1.4E-3,1.2999999999999999E-3,1.3500000000000001E-3]
["Cholanthrene",null,"6-8hrs","None set µg/m3",null,1.3500000000000001E-3,null,null,null,null,null,null,null,null,"Cholanthrene",null,1.4E-3,1.2999999999999999E-3,1.3500000000000001E-3]
["Chrysene",null,"6-8hrs","None set µg/m3",null,1.2999999999999999E-3,null,null,null,null,null,null,null,null,"Chrysene",null,0,2.5999999999999999E-3,1.2999999999999999E-3]
["Cyclopenta(cd)pyrene",null,"6-8hrs","None set µg/m3",null,1.3500000000000001E-3,null,null,null,null,null,null,null,null,"Cyclopenta(cd)pyrene",null,1.4E-3,1.2999999999999999E-3,1.3500000000000001E-3]
["Dibenzo(ai)pyrene",null,"6-8hrs","None set µg/m3",null,1.3500000000000001E-3,null,null,null,null,null,null,null,null,"Dibenzo(ai)pyrene",null,1.4E-3,1.2999999999999999E-3,1.3500000000000001E-3]
["Dibenzo(ah)anthracene",null,"6-8hrs","None set µg/m3",null,1.3500000000000001E-3,null,null,null,null,null,null,null,null,"Dibenzo(ah)anthracene",null,1.4E-3,1.2999999999999999E-3,1.3500000000000001E-3]
["Fluoranthene",null,"6-8hrs","None set µg/m3",null,6.8650000000000003E-2,null,null,null,null,null,null,null,null,"Fluoranthene",null,0.09,4.7300000000000002E-2,6.8650000000000003E-2]
["Indeno(123-cd) pyrene",null,"6-8hrs","None set µg/m3",null,6.4999999999999997E-4,null,null,null,null,null,null,null,null,"Indeno(123-cd) pyrene",null,0,1.2999999999999999E-3,6.4999999999999997E-4]
["Naphthalene",null,"6-8hrs","None set µg/m3",null,0.17499999999999999,null,null,null,null,null,null,null,null,"Naphthalene",null,0.14000000000000001,0.21,0.17499999999999999]
["Comments :"]

{"sheet":"Air (CEMS)","index":14,"n_rows":28,"n_cols":14,"rows_kept":28,"cut":false,"hidden":false,"merged":[[5,0,6,12],[7,0,8,12],[10,0,10,12],[11,0,12,0],[11,2,12,2],[11,1,12,1],[11,3,11,4],[11,5,11,6],[11,7,11,8],[11,9,11,10],[11,11,11,12],[14,13,15,13],[14,14,15,14],[14,15,15,15],[12,13,13,15],[13,0,14,0]]}
[{"$f":"+'Cover Page'!$B$29","v":"Annual Performance Report 2024"},null,null,null,null,null,null,null,{"$f":"+'Cover Page'!$B$33","v":"Peterborough Energy Recovery Facility"}]
[]
["Emissions to Air (continuously monitored)"]
[null,null,null,null,null,null,null,null,null,null,null,null,null,"Notes:"]
["Summary of monitoring undertaken, standards used and compliance",null,null,null,null,null,null,null,null,null,null,null,null,"Template may require adjustment for any bespoke monitoring requirements of permit"]
["The monitoring standards utilised during this testing conformed to those stipulated within Table S3.1 of the Permit. Viridor note, in line with Permit variation dated 21 April 2015; 30 minute carbon monoxide (CO) average monitoring was replaced with CO 10 minute average monitoring.",null,null,null,null,null,null,null,null,null,null,null,null,"Please check that all default ELV values match those for your plant and edit if necessary!"]
[null,null,null,null,null,null,null,null,null,null,null,null,null,"Report to 1 decimal place"]
["The recorded concentrations remained compliant with the limits set out in Permit Tables S3.1  and Tables S4.1 during the review period. "]
[]
[]
["Results of emissions to air that are continuously monitored (maximum and average values for each line) - oxygen reference 11%"]
["Substance","Reference Period","Emission Limit Value","A1"]
[null,null,null,"Max.","Avg."]
["Oxides of nitrogen","Daily mean","180 mg/m3 ",{"$f":"MAX(NOx!O19)","v":127},{"$f":"AVERAGE(NOx!N19)","v":112.89329501915709}]
[null,"½ hourly mean","400 mg/m3 ",{"$f":"MAX(NOx!M19)","v":232.4},{"$f":"AVERAGE(NOx!L19)","v":112.85000000000001}]
["Particulates","Daily mean","5 mg/m3",{"$f":"MAX(Particulates!O19)","v":5.7},{"$f":"AVERAGE(Particulates!N19)","v":1.5264966475095785}]
[null,"½ hourly mean","30 mg/m3 ",{"$f":"MAX(Particulates!M19)","v":18.899999999999999},{"$f":"AVERAGE(Particulates!L19)","v":1.55}]
["Total Organic Carbon ","Daily mean","10 mg/m3 ",{"$f":"MAX(TOC!O19)","v":1.9},{"$f":"AVERAGE(TOC!N19)","v":0.23093869731800765}]
[null,"½ hourly mean","20 mg/m3 ",{"$f":"MAX(TOC!M19)","v":23.7},{"$f":"AVERAGE(TOC!L19)","v":0.27500000000000008}]
["Hydrogen chloride ","Daily mean","8 mg/m3 ",{"$f":"MAX(HCl!O19)","v":8.1999999999999993},{"$f":"AVERAGE(HCl!N19)","v":6.4314894636015332}]
[null,"½ hourly mean","60 mg/m3 ",{"$f":"MAX(HCl!M19)","v":52.7},{"$f":"AVERAGE(HCl!L19)","v":6.4499999999999993}]
["Sulphur dioxide","Daily mean","40 mg/m3 ",{"$f":"MAX('SO2'!O19)","v":34.799999999999997},{"$f":"AVERAGE('SO2'!N19)","v":16.71335009578544}]
[null,"½ hourly mean","200 mg/m3 ",{"$f":"MAX('SO2'!M19)","v":337.5},{"$f":"AVERAGE('SO2'!L19)","v":16.774999999999999}]
["Carbon monoxide ","Daily mean","50 mg/m3 ",{"$f":"MAX('CO 95% 10 min'!Q22)","v":6.5},{"$f":"AVERAGE('CO 95% 10 min'!P22)","v":0.59226532567049806}]
[null,"95%ile 10-min avg *","150 mg/m3 *",{"$f":"MAX('CO 95% 10 min'!M22)","v":8.5916666666666668},{"$f":"AVERAGE('CO 95% 10 min'!N22)","v":0.64166666666666672}]
[" Ammonia","Daily mean","15 mg/m3 ",{"$f":"MAX('NH3'!O19)","v":4.0999999999999996},{"$f":"AVERAGE('NH3'!N19)","v":0.25363984674329504}]
["* = delete as appropriate, depending on whether your plant has half-hourly or 10-min CO ELVs\n"]
["Comments :"]

{"sheet":"HCl","index":15,"n_rows":77,"n_cols":17,"rows_kept":77,"cut":false,"hidden":false,"merged":[[12,16,15,18],[51,9,61,9],[64,9,76,9],[4,9,4,14],[4,1,4,3],[4,4,4,6],[48,0,51,6],[47,0,47,6],[6,9,18,9],[21,9,33,9],[36,9,48,9],[3,16,7,18],[9,16,11,18],[18,4,18,6]]}
[{"$f":"+'Cover Page'!$B$29","v":"Annual Performance Report 2024"},null,null,null,{"$f":"+'Cover Page'!$B$33","v":"Peterborough Energy Recovery Facility"}]
[]
["Monitoring of Hydrogen Chloride emissions",null,null,"Whole Installation",null,null,"See  Notes in Cell Q3",null,null,{"$f":"+A3","v":"Monitoring of Hydrogen Chloride emissions"},null,null,null,"Per Combustion Line",null,null,"Notes:"]
[null,null,null,null,null,null,null,null,null,null,null,null,null,null,null,null,"User to add logic to complete Whole installation, Table A5:G18. From the data in Per Combustion Line, Table J6:O79, subject to No. of lines installed"]
[{"$f":"+'Cover Page'!C39","v":2024},"1/2 Hourly Reference Periods",null,null,"Daily Reference Periods"]
["mg/Nm3","1/2 hourly HCl ELV","Monthly mean of half-hourly averages","Highest half- hourly average","Daily HCl ELV","Monthly mean of  daily averages","Highest daily average",null,null,{"$f":"+A5","v":2024},"mg/Nm3","Monthly mean of half-hourly averages","Highest half- hourly average","Monthly mean of  daily averages","Highest daily average"]
["Jan",60,{"$f":"L7","v":6.1},{"$f":"M7","v":22.9},8,{"$f":"N7","v":6.1},{"$f":"O7","v":8.1999999999999993},null,null,"A1","Jan",6.1,22.9,6.1,8.1999999999999993]
["Feb",60,{"$f":"L8","v":6},{"$f":"M8","v":15.5},8,{"$f":"N8","v":5.9},{"$f":"O8","v":7},null,null,null,"Feb",6,15.5,5.9,7]
["Mar",60,6.5,16.100000000000001,8,6.5,7.1,null,null,null,"Mar",6.5,16.100000000000001,6.5,7.1,null,"Whole Installation table A5:G18:"]
["Apr",60,6.7,17.7,8,6.6,7.3,null,null,null,"Apr",6.7,17.7,6.6,7.3,null,"Mean: for 1/2 hourly and daily periods calculate mean of values across all operational combustion lines for the month"]
["May",60,6.9,14.8,8,6.9,7.5,null,null,null,"May",6.9,14.8,6.9,7.5]
["Jun",60,6.6,12.8,8,6.6,7.2,null,null,null,"Jun",6.6,12.8,6.6,7.2]
["Jul",60,6.6,18,8,6.6,7.2,null,null,null,"Jul",6.6,18,6.6,7.2,null,"Maximum: for 1/2 hourly and daily periods use the highest value across all operational combustion lines for the month"]
["Aug",60,6.3,13.3,8,6.3,7.1,null,null,null,"Aug",6.3,13.3,6.3,7.1]
["Sep",60,6.3,20.6,8,6.3,7.4,null,null,null,"Sep",6.3,20.6,6.3,7.4]
["Oct",60,6.3,17.899999999999999,8,6.386206896551724,7.4,null,null,null,"Oct",6.3,17.899999999999999,6.386206896551724,7.4]
["Nov",60,6.8,52.7,8,6.5916666666666659,7.7,null,null,null,"Nov",6.8,52.7,6.5916666666666659,7.7]
["Dec",60,6.3,12.6,8,6.4,7.1,null,null,null,"Dec",6.3,12.6,6.4,7.1]
[null,null,null,null,null,null,null,null,null,null,"Annual",{"$f":"AVERAGE(L7:L18)","v":6.4499999999999993},{"$f":"MAX(M7:M18)","v":52.7},{"$f":"AVERAGE(N7:N18)","v":6.4314894636015332},{"$f":"MAX(O7:O18)","v":8.1999999999999993}]
[]
[null,null,null,null,null,null,null,null,null,{"$f":"+A5","v":2024},"mg/Nm3","Monthly mean of half-hourly averages","Highest half- hourly average","Monthly mean of  daily averages","Highest daily average"]
[null,null,null,null,null,null,null,null,null,"A2","Jan"]
[null,null,null,null,null,null,null,null,null,null,"Feb"]
[null,null,null,null,null,null,null,null,null,null,"Mar"]
[null,null,null,null,null,null,null,null,null,null,"Apr"]
[null,null,null,null,null,null,null,null,null,null,"May"]
[null,null,null,null,null,null,null,null,null,null,"Jun"]
[null,null,null,null,null,null,null,null,null,null,"Jul"]
[null,null,null,null,null,null,null,null,null,null,"Aug"]
[null,null,null,null,null,null,null,null,null,null,"Sep"]
[null,null,null,null,null,null,null,null,null,null,"Oct"]
[null,null,null,null,null,null,null,null,null,null,"Nov"]
[null,null,null,null,null,null,null,null,null,null,"Dec"]
[null,null,null,null,null,null,null,null,null,null,"Annual",{"$f":"AVERAGE(L22:L33)","v":{"$error":"#DIV/0!"}},{"$f":"MAX(M22:M33)","v":0},{"$f":"AVERAGE(N22:N33)","v":{"$error":"#DIV/0!"}},{"$f":"MAX(O22:O33)","v":0}]
[]
[null,null,null,null,null,null,null,null,null,{"$f":"+A5","v":2024},"mg/Nm3","Monthly mean of half-hourly averages","Highest half- hourly average","Monthly mean of  daily averages","Highest daily average"]
[null,null,null,null,null,null,null,null,null,"A3","Jan"]
[null,null,null,null,null,null,null,null,null,null,"Feb"]
[null,null,null,null,null,null,null,null,null,null,"Mar"]
[null,null,null,null,null,null,null,null,null,null,"Apr"]
[null,null,null,null,null,null,null,null,null,null,"May"]
[null,null,null,null,null,null,null,null,null,null,"Jun"]
[null,null,null,null,null,null,null,null,null,null,"Jul"]
[null,null,null,null,null,null,null,null,null,null,"Aug"]
[null,null,null,null,null,null,null,null,null,null,"Sep"]
[null,null,null,null,null,null,null,null,null,null,"Oct"]
[null,null,null,null,null,null,null,null,null,null,"Nov"]
["Comments :",null,null,null,null,null,null,null,null,null,"Dec"]
[null,null,null,null,null,null,null,null,null,null,"Annual",{"$f":"AVERAGE(L37:L48)","v":{"$error":"#DIV/0!"}},{"$f":"MAX(M37:M48)","v":0},{"$f":"AVERAGE(N37:N48)","v":{"$error":"#DIV/0!"}},{"$f":"MAX(O37:O48)","v":0}]
[]
[null,null,null,null,null,null,null,null,null,{"$f":"+A5","v":2024},"mg/Nm3","Monthly mean of half-hourly averages","Highest half- hourly average","Monthly mean of  daily averages","Highest daily average"]
[null,null,null,null,null,null,null,null,null,"A4","Jan"]
[null,null,null,null,null,null,null,null,null,null,"Feb"]
[null,null,null,null,null,null,null,null,null,null,"May"]
[null,null,null,null,null,null,null,null,null,null,"Jun"]
[null,null,null,null,null,null,null,null,null,null,"Jul"]
[null,null,null,null,null,null,null,null,null,null,"Aug"]
[null,null,null,null,null,null,null,null,null,null,"Sep"]
[null,null,null,null,null,null,null,null,null,null,"Oct"]
[null,null,null,null,null,null,null,null,null,null,"Nov"]
[null,null,null,null,null,null,null,null,null,null,"Dec"]
[null,null,null,null,null,null,null,null,null,null,"Annual",{"$f":"AVERAGE(L52:L61)","v":{"$error":"#DIV/0!"}},{"$f":"MAX(M52:M61)","v":0},{"$f":"AVERAGE(N52:N61)","v":{"$error":"#DIV/0!"}},{"$f":"MAX(O52:O61)","v":0}]
[]
[null,null,null,null,null,null,null,null,null,{"$f":"+A5","v":2024},"mg/Nm3","Monthly mean of half-hourly averages","Highest half- hourly average","Monthly mean of  daily averages","Highest daily average"]
[null,null,null,null,null,null,null,null,null,"A5","Jan"]
[null,null,null,null,null,null,null,null,null,null,"Feb"]
[null,null,null,null,null,null,null,null,null,null,"Mar"]
[null,null,null,null,null,null,null,null,null,null,"Apr"]
[null,null,null,null,null,null,null,null,null,null,"May"]
[null,null,null,null,null,null,null,null,null,null,"Jun"]
[null,null,null,null,null,null,null,null,null,null,"Jul"]
[null,null,null,null,null,null,null,null,null,null,"Aug"]
[null,null,null,null,null,null,null,null,null,null,"Sep"]
[null,null,null,null,null,null,null,null,null,null,"Oct"]
[null,null,null,null,null,null,null,null,null,null,"Nov"]
[null,null,null,null,null,null,null,null,null,null,"Dec"]
[null,null,null,null,null,null,null,null,null,null,"Annual",{"$f":"AVERAGE(L65:L76)","v":{"$error":"#DIV/0!"}},{"$f":"MAX(M65:M76)","v":0},{"$f":"AVERAGE(N65:N76)","v":{"$error":"#DIV/0!"}},{"$f":"MAX(O65:O76)","v":0}]

{"sheet":"SO2","index":16,"n_rows":77,"n_cols":17,"rows_kept":77,"cut":false,"hidden":false,"merged":[[3,16,7,18],[9,16,11,18],[12,16,15,18],[64,9,76,9],[4,1,4,3],[4,4,4,6],[4,9,4,14],[6,9,18,9],[21,9,33,9],[36,9,48,9],[47,0,47,6],[48,0,51,6],[51,9,61,9],[18,4,18,6]]}
[{"$f":"+'Cover Page'!$B$29","v":"Annual Performance Report 2024"},null,null,null,{"$f":"+'Cover Page'!$B$33","v":"Peterborough Energy Recovery Facility"}]
[]
["Monitoring of Sulphur dioxide emissions",null,null,"Whole Installation",null,null,"See  Notes in Cell Q3",null,null,{"$f":"+A3","v":"Monitoring of Sulphur dioxide emissions"},null,null,null,"Per Combustion Line",null,null,"Notes:"]
[null,null,null,null,null,null,null,null,null,null,null,null,null,null,null,null,"User to add logic to complete Whole installation, Table A5:G18. From the data in Per Combustion Line, Table J6:O79, subject to No. of lines installed"]
[{"$f":"+'Cover Page'!C39","v":2024},"1/2 Hourly Reference Periods",null,null,"Daily Reference Periods"]
["mg/Nm3","1/2 hourly SO2 ELV","Monthly mean of half-hourly averages","Highest half- hourly average","Daily SO2 ELV","Monthly mean of  daily averages","Highest daily average",null,null,{"$f":"+A5","v":2024},"mg/Nm3","Monthly mean of half-hourly averages","Highest half- hourly average","Monthly mean of  daily averages","Highest daily average"]
["Jan",200,{"$f":"L7","v":28.3},{"$f":"M7","v":312.39999999999998},40,{"$f":"N7","v":28.2},{"$f":"O7","v":32.700000000000003},null,null,"A1","Jan",28.3,312.39999999999998,28.2,32.700000000000003]
["Feb",200,{"$f":"L8","v":21.3},89.8,40,{"$f":"N8","v":21.2},34.799999999999997,null,null,null,"Feb",21.3,89.8,21.2,34.799999999999997]
["Mar",200,18.100000000000001,90.5,40,18.100000000000001,26,null,null,null,"Mar",18.100000000000001,90.5,18.100000000000001,26,null,"Whole Installation table A5:G18:"]
["Apr",200,17.3,181.8,40,17.3,30,null,null,null,"Apr",17.3,181.8,17.3,30,null,"Mean: for 1/2 hourly and daily periods calculate mean of values across all operational combustion lines for the month"]
["May",200,18.2,233.6,40,17.899999999999999,33.299999999999997,null,null,null,"May",18.2,233.6,17.899999999999999,33.299999999999997]
["Jun",200,13.3,61,40,13.3,21.2,null,null,null,"Jun",13.3,61,13.3,21.2]
["Jul",200,16.399999999999999,134.6,40,16.100000000000001,33.4,null,null,null,"Jul",16.399999999999999,134.6,16.100000000000001,33.4,null,"Maximum: for 1/2 hourly and daily periods use the highest value across all operational combustion lines for the month"]
["Aug",200,15.5,53.7,40,15.5,25.3,null,null,null,"Aug",15.5,53.7,15.5,25.3]
["Sep",200,16.600000000000001,337.5,40,16.399999999999999,32.9,null,null,null,"Sep",16.600000000000001,337.5,16.399999999999999,32.9]
["Oct",200,10.7,90.5,40,10.83103448275862,14.8,null,null,null,"Oct",10.7,90.5,10.83103448275862,14.8]
["Nov",200,15.2,194.1,40,15.22916666666667,29.3,null,null,null,"Nov",15.2,194.1,15.22916666666667,29.3]
["Dec",200,10.4,69.400000000000006,40,10.5,14.4,null,null,null,"Dec",10.4,69.400000000000006,10.5,14.4]
[null,null,null,null,null,null,null,null,null,null,"Annual",{"$f":"AVERAGE(L7:L18)","v":16.774999999999999},{"$f":"MAX(M7:M18)","v":337.5},{"$f":"AVERAGE(N7:N18)","v":16.71335009578544},{"$f":"MAX(O7:O18)","v":34.799999999999997}]
[]
[null,null,null,null,null,null,null,null,null,{"$f":"+A5","v":2024},"mg/Nm3","Monthly mean of half-hourly averages","Highest half- hourly average","Monthly mean of  daily averages","Highest daily average"]
[null,null,null,null,null,null,null,null,null,"A2","Jan"]
[null,null,null,null,null,null,null,null,null,null,"Feb"]
[null,null,null,null,null,null,null,null,null,null,"Mar"]
[null,null,null,null,null,null,null,null,null,null,"Apr"]
[null,null,null,null,null,null,null,null,null,null,"May"]
[null,null,null,null,null,null,null,null,null,null,"Jun"]
[null,null,null,null,null,null,null,null,null,null,"Jul"]
[null,null,null,null,null,null,null,null,null,null,"Aug"]
[null,null,null,null,null,null,null,null,null,null,"Sep"]
[null,null,null,null,null,null,null,null,null,null,"Oct"]
[null,null,null,null,null,null,null,null,null,null,"Nov"]
[null,null,null,null,null,null,null,null,null,null,"Dec"]
[null,null,null,null,null,null,null,null,null,null,"Annual",{"$f":"AVERAGE(L22:L33)","v":{"$error":"#DIV/0!"}},{"$f":"MAX(M22:M33)","v":0},{"$f":"AVERAGE(N22:N33)","v":{"$error":"#DIV/0!"}},{"$f":"MAX(O22:O33)","v":0}]
[]
[null,null,null,null,null,null,null,null,null,{"$f":"+A5","v":2024},"mg/Nm3","Monthly mean of half-hourly averages","Highest half- hourly average","Monthly mean of  daily averages","Highest daily average"]
[null,null,null,null,null,null,null,null,null,"A3","Jan"]
[null,null,null,null,null,null,null,null,null,null,"Feb"]
[null,null,null,null,null,null,null,null,null,null,"Mar"]
[null,null,null,null,null,null,null,null,null,null,"Apr"]
[null,null,null,null,null,null,null,null,null,null,"May"]
[null,null,null,null,null,null,null,null,null,null,"Jun"]
[null,null,null,null,null,null,null,null,null,null,"Jul"]
[null,null,null,null,null,null,null,null,null,null,"Aug"]
[null,null,null,null,null,null,null,null,null,null,"Sep"]
[null,null,null,null,null,null,null,null,null,null,"Oct"]
[null,null,null,null,null,null,null,null,null,null,"Nov"]
["Comments :",null,null,null,null,null,null,null,null,null,"Dec"]
[null,null,null,null,null,null,null,null,null,null,"Annual",{"$f":"AVERAGE(L37:L48)","v":{"$error":"#DIV/0!"}},{"$f":"MAX(M37:M48)","v":0},{"$f":"AVERAGE(N37:N48)","v":{"$error":"#DIV/0!"}},{"$f":"MAX(O37:O48)","v":0}]
[]
[null,null,null,null,null,null,null,null,null,{"$f":"+A5","v":2024},"mg/Nm3","Monthly mean of half-hourly averages","Highest half- hourly average","Monthly mean of  daily averages","Highest daily average"]
[null,null,null,null,null,null,null,null,null,"A4","Jan"]
[null,null,null,null,null,null,null,null,null,null,"Feb"]
[null,null,null,null,null,null,null,null,null,null,"May"]
[null,null,null,null,null,null,null,null,null,null,"Jun"]
[null,null,null,null,null,null,null,null,null,null,"Jul"]
[null,null,null,null,null,null,null,null,null,null,"Aug"]
[null,null,null,null,null,null,null,null,null,null,"Sep"]
[null,null,null,null,null,null,null,null,null,null,"Oct"]
[null,null,null,null,null,null,null,null,null,null,"Nov"]
[null,null,null,null,null,null,null,null,null,null,"Dec"]
[null,null,null,null,null,null,null,null,null,null,"Annual",{"$f":"AVERAGE(L52:L61)","v":{"$error":"#DIV/0!"}},{"$f":"MAX(M52:M61)","v":0},{"$f":"AVERAGE(N52:N61)","v":{"$error":"#DIV/0!"}},{"$f":"MAX(O52:O61)","v":0}]
[]
[null,null,null,null,null,null,null,null,null,{"$f":"+A5","v":2024},"mg/Nm3","Monthly mean of half-hourly averages","Highest half- hourly average","Monthly mean of  daily averages","Highest daily average"]
[null,null,null,null,null,null,null,null,null,"A5","Jan"]
[null,null,null,null,null,null,null,null,null,null,"Feb"]
[null,null,null,null,null,null,null,null,null,null,"Mar"]
[null,null,null,null,null,null,null,null,null,null,"Apr"]
[null,null,null,null,null,null,null,null,null,null,"May"]
[null,null,null,null,null,null,null,null,null,null,"Jun"]
[null,null,null,null,null,null,null,null,null,null,"Jul"]
[null,null,null,null,null,null,null,null,null,null,"Aug"]
[null,null,null,null,null,null,null,null,null,null,"Sep"]
[null,null,null,null,null,null,null,null,null,null,"Oct"]
[null,null,null,null,null,null,null,null,null,null,"Nov"]
[null,null,null,null,null,null,null,null,null,null,"Dec"]
[null,null,null,null,null,null,null,null,null,null,"Annual",{"$f":"AVERAGE(L65:L76)","v":{"$error":"#DIV/0!"}},{"$f":"MAX(M65:M76)","v":0},{"$f":"AVERAGE(N65:N76)","v":{"$error":"#DIV/0!"}},{"$f":"MAX(O65:O76)","v":0}]

{"sheet":"NOx","index":17,"n_rows":77,"n_cols":17,"rows_kept":77,"cut":false,"hidden":false,"merged":[[3,16,7,18],[9,16,11,18],[12,16,15,18],[64,9,76,9],[4,1,4,3],[4,4,4,6],[4,9,4,14],[6,9,18,9],[21,9,33,9],[36,9,48,9],[47,0,47,6],[48,0,51,6],[51,9,61,9],[18,4,18,6]]}
[{"$f":"+'Cover Page'!$B$29","v":"Annual Performance Report 2024"},null,null,null,{"$f":"+'Cover Page'!$B$33","v":"Peterborough Energy Recovery Facility"}]
[]
["Monitoring of Oxides of Nitrogen emissions",null,null,"Whole Installation",null,null,"See  Notes in Cell Q3",null,null,{"$f":"+A3","v":"Monitoring of Oxides of Nitrogen emissions"},null,null,null,"Per Combustion Line",null,null,"Notes:"]
[null,null,null,null,null,null,null,null,null,null,null,null,null,null,null,null,"User to add logic to complete Whole installation, Table A5:G18. From the data in Per Combustion Line, Table J6:O79, subject to No. of lines installed"]
[{"$f":"+'Cover Page'!C39","v":2024},"1/2 Hourly Reference Periods",null,null,"Daily Reference Periods"]
["mg/Nm3","1/2 hourly NOx ELV","Monthly mean of half-hourly averages","Highest half- hourly average","Daily NOx ELV","Monthly mean of  daily averages","Highest daily average",null,null,{"$f":"+A5","v":2024},"mg/Nm3","Monthly mean of half-hourly averages","Highest half- hourly average","Monthly mean of  daily averages","Highest daily average"]
["Jan",400,{"$f":"L7","v":114.1},{"$f":"M7","v":232.4},180,{"$f":"N7","v":114.1},{"$f":"O7","v":125.5},null,null,"A1","Jan",114.1,232.4,114.1,125.5]
["Feb",400,{"$f":"L8","v":115.9},170.9,180,{"$f":"N8","v":116},126.3,null,null,null,"Feb",115.9,170.9,116,126.3]
["Mar",400,113.9,161.9,180,113.5,126.4,null,null,null,"Mar",113.9,161.9,113.5,126.4,null,"Whole Installation table A5:G18:"]
["Apr",400,114.6,161.69999999999999,180,114.6,124.7,null,null,null,"Apr",114.6,161.69999999999999,114.6,124.7,null,"Mean: for 1/2 hourly and daily periods calculate mean of values across all operational combustion lines for the month"]
["May",400,111.7,156.80000000000001,180,111.5,115.2,null,null,null,"May",111.7,156.80000000000001,111.5,115.2]
["Jun",400,111.6,147.69999999999999,180,111.5,116.3,null,null,null,"Jun",111.6,147.69999999999999,111.5,116.3]
["Jul",400,112.1,160.6,180,112.5,115.7,null,null,null,"Jul",112.1,160.6,112.5,115.7,null,"Maximum: for 1/2 hourly and daily periods use the highest value across all operational combustion lines for the month"]
["Aug",400,111.9,144.69999999999999,180,111.8,112.8,null,null,null,"Aug",111.9,144.69999999999999,111.8,112.8]
["Sep",400,111.6,173.1,180,111.7,112.9,null,null,null,"Sep",111.6,173.1,111.7,112.9]
["Oct",400,110.5,154.9,180,110.78620689655172,117.4,null,null,null,"Oct",110.5,154.9,110.78620689655172,117.4]
["Nov",400,112.2,146.9,180,112.33333333333331,114.3,null,null,null,"Nov",112.2,146.9,112.33333333333331,114.3]
["Dec",400,114.1,198,180,114.4,127,null,null,null,"Dec",114.1,198,114.4,127]
[null,null,null,null,null,null,null,null,null,null,"Annual",{"$f":"AVERAGE(L7:L18)","v":112.85000000000001},{"$f":"MAX(M7:M18)","v":232.4},{"$f":"AVERAGE(N7:N18)","v":112.89329501915709},{"$f":"MAX(O7:O18)","v":127}]
[]
[null,null,null,null,null,null,null,null,null,{"$f":"+A5","v":2024},"mg/Nm3","Monthly mean of half-hourly averages","Highest half- hourly average","Monthly mean of  daily averages","Highest daily average"]
[null,null,null,null,null,null,null,null,null,"A2","Jan"]
[null,null,null,null,null,null,null,null,null,null,"Feb"]
[null,null,null,null,null,null,null,null,null,null,"Mar"]
[null,null,null,null,null,null,null,null,null,null,"Apr"]
[null,null,null,null,null,null,null,null,null,null,"May"]
[null,null,null,null,null,null,null,null,null,null,"Jun"]
[null,null,null,null,null,null,null,null,null,null,"Jul"]
[null,null,null,null,null,null,null,null,null,null,"Aug"]
[null,null,null,null,null,null,null,null,null,null,"Sep"]
[null,null,null,null,null,null,null,null,null,null,"Oct"]
[null,null,null,null,null,null,null,null,null,null,"Nov"]
[null,null,null,null,null,null,null,null,null,null,"Dec"]
[null,null,null,null,null,null,null,null,null,null,"Annual",{"$f":"AVERAGE(L22:L33)","v":{"$error":"#DIV/0!"}},{"$f":"MAX(M22:M33)","v":0},{"$f":"AVERAGE(N22:N33)","v":{"$error":"#DIV/0!"}},{"$f":"MAX(O22:O33)","v":0}]
[]
[null,null,null,null,null,null,null,null,null,{"$f":"+A5","v":2024},"mg/Nm3","Monthly mean of half-hourly averages","Highest half- hourly average","Monthly mean of  daily averages","Highest daily average"]
[null,null,null,null,null,null,null,null,null,"A3","Jan"]
[null,null,null,null,null,null,null,null,null,null,"Feb"]
[null,null,null,null,null,null,null,null,null,null,"Mar"]
[null,null,null,null,null,null,null,null,null,null,"Apr"]
[null,null,null,null,null,null,null,null,null,null,"May"]
[null,null,null,null,null,null,null,null,null,null,"Jun"]
[null,null,null,null,null,null,null,null,null,null,"Jul"]
[null,null,null,null,null,null,null,null,null,null,"Aug"]
[null,null,null,null,null,null,null,null,null,null,"Sep"]
[null,null,null,null,null,null,null,null,null,null,"Oct"]
[null,null,null,null,null,null,null,null,null,null,"Nov"]
["Comments :",null,null,null,null,null,null,null,null,null,"Dec"]
[null,null,null,null,null,null,null,null,null,null,"Annual",{"$f":"AVERAGE(L37:L48)","v":{"$error":"#DIV/0!"}},{"$f":"MAX(M37:M48)","v":0},{"$f":"AVERAGE(N37:N48)","v":{"$error":"#DIV/0!"}},{"$f":"MAX(O37:O48)","v":0}]
[]
[null,null,null,null,null,null,null,null,null,{"$f":"+A5","v":2024},"mg/Nm3","Monthly mean of half-hourly averages","Highest half- hourly average","Monthly mean of  daily averages","Highest daily average"]
[null,null,null,null,null,null,null,null,null,"A4","Jan"]
[null,null,null,null,null,null,null,null,null,null,"Feb"]
[null,null,null,null,null,null,null,null,null,null,"May"]
[null,null,null,null,null,null,null,null,null,null,"Jun"]
[null,null,null,null,null,null,null,null,null,null,"Jul"]
[null,null,null,null,null,null,null,null,null,null,"Aug"]
[null,null,null,null,null,null,null,null,null,null,"Sep"]
[null,null,null,null,null,null,null,null,null,null,"Oct"]
[null,null,null,null,null,null,null,null,null,null,"Nov"]
[null,null,null,null,null,null,null,null,null,null,"Dec"]
[null,null,null,null,null,null,null,null,null,null,"Annual",{"$f":"AVERAGE(L52:L61)","v":{"$error":"#DIV/0!"}},{"$f":"MAX(M52:M61)","v":0},{"$f":"AVERAGE(N52:N61)","v":{"$error":"#DIV/0!"}},{"$f":"MAX(O52:O61)","v":0}]
[]
[null,null,null,null,null,null,null,null,null,{"$f":"+A5","v":2024},"mg/Nm3","Monthly mean of half-hourly averages","Highest half- hourly average","Monthly mean of  daily averages","Highest daily average"]
[null,null,null,null,null,null,null,null,null,"A5","Jan"]
[null,null,null,null,null,null,null,null,null,null,"Feb"]
[null,null,null,null,null,null,null,null,null,null,"Mar"]
[null,null,null,null,null,null,null,null,null,null,"Apr"]
[null,null,null,null,null,null,null,null,null,null,"May"]
[null,null,null,null,null,null,null,null,null,null,"Jun"]
[null,null,null,null,null,null,null,null,null,null,"Jul"]
[null,null,null,null,null,null,null,null,null,null,"Aug"]
[null,null,null,null,null,null,null,null,null,null,"Sep"]
[null,null,null,null,null,null,null,null,null,null,"Oct"]
[null,null,null,null,null,null,null,null,null,null,"Nov"]
[null,null,null,null,null,null,null,null,null,null,"Dec"]
[null,null,null,null,null,null,null,null,null,null,"Annual",{"$f":"AVERAGE(L65:L76)","v":{"$error":"#DIV/0!"}},{"$f":"MAX(M65:M76)","v":0},{"$f":"AVERAGE(N65:N76)","v":{"$error":"#DIV/0!"}},{"$f":"MAX(O65:O76)","v":0}]

{"sheet":"TOC","index":18,"n_rows":77,"n_cols":17,"rows_kept":77,"cut":false,"hidden":false,"merged":[[3,16,7,18],[9,16,11,18],[12,16,15,18],[64,9,76,9],[4,1,4,3],[4,4,4,6],[4,9,4,14],[6,9,18,9],[21,9,33,9],[36,9,48,9],[47,0,47,6],[48,0,51,6],[51,9,61,9]]}
[{"$f":"+'Cover Page'!$B$29","v":"Annual Performance Report 2024"},null,null,null,{"$f":"+'Cover Page'!$B$33","v":"Peterborough Energy Recovery Facility"}]
[]
["Monitoring of Total organic carbon emissions",null,null,"Whole Installation",null,null,"See  Notes in Cell Q3",null,null,{"$f":"+A3","v":"Monitoring of Total organic carbon emissions"},null,null,null,"Per Combustion Line",null,null,"Notes:"]
[null,null,null,null,null,null,null,null,null,null,null,null,null,null,null,null,"User to add logic to complete Whole installation, Table A5:G18. From the data in Per Combustion Line, Table J6:O79, subject to No. of lines installed"]
[{"$f":"+'Cover Page'!C39","v":2024},"1/2 Hourly Reference Periods",null,null,"Daily Reference Periods"]
["mg/Nm3","1/2 hourly TOC ELV","Monthly mean of half-hourly averages","Highest half- hourly average","Daily TOC ELV","Monthly mean of  daily averages","Highest daily average",null,null,{"$f":"+A5","v":2024},"mg/Nm3","Monthly mean of half-hourly averages","Highest half- hourly average","Monthly mean of  daily averages","Highest daily average"]
["Jan",20,{"$f":"L7","v":0.5},{"$f":"M7","v":4.8},10,{"$f":"N7","v":0.4},{"$f":"O7","v":1},null,null,"A1","Jan",0.5,4.8,0.4,1]
["Feb",20,{"$f":"L8","v":0.3},4.5999999999999996,10,{"$f":"N8","v":0.2},0.5,null,null,null,"Feb",0.3,4.5999999999999996,0.2,0.5]
["Mar",20,0.2,19.8,10,0.2,0.7,null,null,null,"Mar",0.2,19.8,0.2,0.7,null,"Whole Installation table A5:G18:"]
["Apr",20,0.3,2.6,10,0.2,0.6,null,null,null,"Apr",0.3,2.6,0.2,0.6,null,"Mean: for 1/2 hourly and daily periods calculate mean of values across all operational combustion lines for the month"]
["May",20,0.3,7.1,10,0.2,0.4,null,null,null,"May",0.3,7.1,0.2,0.4]
["Jun",20,0.3,3.1,10,0.2,0.5,null,null,null,"Jun",0.3,3.1,0.2,0.5]
["Jul",20,0.2,23.7,10,0.2,0.6,null,null,null,"Jul",0.2,23.7,0.2,0.6,null,"Maximum: for 1/2 hourly and daily periods use the highest value across all operational combustion lines for the month"]
["Aug",20,0.2,15.8,10,0.1,0.7,null,null,null,"Aug",0.2,15.8,0.1,0.7]
["Sep",20,0.2,13.5,10,0.2,0.6,null,null,null,"Sep",0.2,13.5,0.2,0.6]
["Oct",20,0.1,4.8,10,0.13793103448275865,0.5,null,null,null,"Oct",0.1,4.8,0.13793103448275865,0.5]
["Nov",20,0.1,2.7,10,0.13333333333333336,0.4,null,null,null,"Nov",0.1,2.7,0.13333333333333336,0.4]
["Dec",20,0.6,18.899999999999999,10,0.6,1.9,null,null,null,"Dec",0.6,18.899999999999999,0.6,1.9]
[null,null,null,null,null,null,null,null,null,null,"Annual",{"$f":"AVERAGE(L7:L18)","v":0.27500000000000008},{"$f":"MAX(M7:M18)","v":23.7},{"$f":"AVERAGE(N7:N18)","v":0.23093869731800765},{"$f":"MAX(O7:O18)","v":1.9}]
[]
[null,null,null,null,null,null,null,null,null,{"$f":"+A5","v":2024},"mg/Nm3","Monthly mean of half-hourly averages","Highest half- hourly average","Monthly mean of  daily averages","Highest daily average"]
[null,null,null,null,null,null,null,null,null,"A2","Jan"]
[null,null,null,null,null,null,null,null,null,null,"Feb"]
[null,null,null,null,null,null,null,null,null,null,"Mar"]
[null,null,null,null,null,null,null,null,null,null,"Apr"]
[null,null,null,null,null,null,null,null,null,null,"May"]
[null,null,null,null,null,null,null,null,null,null,"Jun"]
[null,null,null,null,null,null,null,null,null,null,"Jul"]
[null,null,null,null,null,null,null,null,null,null,"Aug"]
[null,null,null,null,null,null,null,null,null,null,"Sep"]
[null,null,null,null,null,null,null,null,null,null,"Oct"]
[null,null,null,null,null,null,null,null,null,null,"Nov"]
[null,null,null,null,null,null,null,null,null,null,"Dec"]
[null,null,null,null,null,null,null,null,null,null,"Annual",{"$f":"AVERAGE(L22:L33)","v":{"$error":"#DIV/0!"}},{"$f":"MAX(M22:M33)","v":0},{"$f":"AVERAGE(N22:N33)","v":{"$error":"#DIV/0!"}},{"$f":"MAX(O22:O33)","v":0}]
[]
[null,null,null,null,null,null,null,null,null,{"$f":"+A5","v":2024},"mg/Nm3","Monthly mean of half-hourly averages","Highest half- hourly average","Monthly mean of  daily averages","Highest daily average"]
[null,null,null,null,null,null,null,null,null,"A3","Jan"]
[null,null,null,null,null,null,null,null,null,null,"Feb"]
[null,null,null,null,null,null,null,null,null,null,"Mar"]
[null,null,null,null,null,null,null,null,null,null,"Apr"]
[null,null,null,null,null,null,null,null,null,null,"May"]
[null,null,null,null,null,null,null,null,null,null,"Jun"]
[null,null,null,null,null,null,null,null,null,null,"Jul"]
[null,null,null,null,null,null,null,null,null,null,"Aug"]
[null,null,null,null,null,null,null,null,null,null,"Sep"]
[null,null,null,null,null,null,null,null,null,null,"Oct"]
[null,null,null,null,null,null,null,null,null,null,"Nov"]
["Comments :",null,null,null,null,null,null,null,null,null,"Dec"]
[null,null,null,null,null,null,null,null,null,null,"Annual",{"$f":"AVERAGE(L37:L48)","v":{"$error":"#DIV/0!"}},{"$f":"MAX(M37:M48)","v":0},{"$f":"AVERAGE(N37:N48)","v":{"$error":"#DIV/0!"}},{"$f":"MAX(O37:O48)","v":0}]
[]
[null,null,null,null,null,null,null,null,null,{"$f":"+A5","v":2024},"mg/Nm3","Monthly mean of half-hourly averages","Highest half- hourly average","Monthly mean of  daily averages","Highest daily average"]
[null,null,null,null,null,null,null,null,null,"A4","Jan"]
[null,null,null,null,null,null,null,null,null,null,"Feb"]
[null,null,null,null,null,null,null,null,null,null,"May"]
[null,null,null,null,null,null,null,null,null,null,"Jun"]
[null,null,null,null,null,null,null,null,null,null,"Jul"]
[null,null,null,null,null,null,null,null,null,null,"Aug"]
[null,null,null,null,null,null,null,null,null,null,"Sep"]
[null,null,null,null,null,null,null,null,null,null,"Oct"]
[null,null,null,null,null,null,null,null,null,null,"Nov"]
[null,null,null,null,null,null,null,null,null,null,"Dec"]
[null,null,null,null,null,null,null,null,null,null,"Annual",{"$f":"AVERAGE(L52:L61)","v":{"$error":"#DIV/0!"}},{"$f":"MAX(M52:M61)","v":0},{"$f":"AVERAGE(N52:N61)","v":{"$error":"#DIV/0!"}},{"$f":"MAX(O52:O61)","v":0}]
[]
[null,null,null,null,null,null,null,null,null,{"$f":"+A5","v":2024},"mg/Nm3","Monthly mean of half-hourly averages","Highest half- hourly average","Monthly mean of  daily averages","Highest daily average"]
[null,null,null,null,null,null,null,null,null,"A5","Jan"]
[null,null,null,null,null,null,null,null,null,null,"Feb"]
[null,null,null,null,null,null,null,null,null,null,"Mar"]
[null,null,null,null,null,null,null,null,null,null,"Apr"]
[null,null,null,null,null,null,null,null,null,null,"May"]
[null,null,null,null,null,null,null,null,null,null,"Jun"]
[null,null,null,null,null,null,null,null,null,null,"Jul"]
[null,null,null,null,null,null,null,null,null,null,"Aug"]
[null,null,null,null,null,null,null,null,null,null,"Sep"]
[null,null,null,null,null,null,null,null,null,null,"Oct"]
[null,null,null,null,null,null,null,null,null,null,"Nov"]
[null,null,null,null,null,null,null,null,null,null,"Dec"]
[null,null,null,null,null,null,null,null,null,null,"Annual",{"$f":"AVERAGE(L65:L76)","v":{"$error":"#DIV/0!"}},{"$f":"MAX(M65:M76)","v":0},{"$f":"AVERAGE(N65:N76)","v":{"$error":"#DIV/0!"}},{"$f":"MAX(O65:O76)","v":0}]

{"sheet":"Particulates","index":19,"n_rows":77,"n_cols":17,"rows_kept":77,"cut":false,"hidden":false,"merged":[[4,16,8,18],[10,16,12,18],[13,16,16,18],[64,9,76,9],[4,1,4,3],[4,4,4,6],[4,9,4,14],[6,9,18,9],[21,9,33,9],[36,9,48,9],[47,0,47,6],[48,0,51,6],[51,9,61,9],[18,4,18,6]]}
[{"$f":"+'Cover Page'!$B$29","v":"Annual Performance Report 2024"},null,null,null,{"$f":"+'Cover Page'!$B$33","v":"Peterborough Energy Recovery Facility"}]
[]
["Monitoring of Particulate matter emissions",null,null,"Whole Installation",null,null,"See  Notes in Cell Q3",null,null,{"$f":"+A3","v":"Monitoring of Particulate matter emissions"},null,null,null,"Per Combustion Line",null,null,"Notes:"]
[]
[{"$f":"+'Cover Page'!C39","v":2024},"1/2 Hourly Reference Periods",null,null,"Daily Reference Periods",null,null,null,null,null,null,null,null,null,null,null,"User to add logic to complete Whole installation, Table A5:G18. From the data in Per Combustion Line, Table J6:O79, subject to No. of lines installed"]
["mg/Nm3","1/2 hourly PM ELV","Monthly mean of half-hourly averages","Highest half- hourly average","Daily PM ELV","Monthly mean of  daily averages","Highest daily average",null,null,{"$f":"+A5","v":2024},"mg/Nm3","Monthly mean of half-hourly averages","Highest half- hourly average","Monthly mean of  daily averages","Highest daily average"]
["Jan",30,{"$f":"L7","v":2.1},{"$f":"M7","v":10.5},5,{"$f":"N7","v":2.1},{"$f":"O7","v":4.4000000000000004},null,null,"A1","Jan",2.1,10.5,2.1,4.4000000000000004]
["Feb",30,{"$f":"L8","v":0.5},5.0999999999999996,5,{"$f":"N8","v":0.5},1.1000000000000001,null,null,null,"Feb",0.5,5.0999999999999996,0.5,1.1000000000000001]
["Mar",30,1.1000000000000001,7.6,5,1.1000000000000001,2.7,null,null,null,"Mar",1.1000000000000001,7.6,1.1000000000000001,2.7]
["Apr",30,0.9,5.3,5,0.8,1.7,null,null,null,"Apr",0.9,5.3,0.8,1.7,null,"Whole Installation table A5:G18:"]
["May",30,2.6,16.2,5,2.6,5.7,null,null,null,"May",2.6,16.2,2.6,5.7,null,"Mean: for 1/2 hourly and daily periods calculate mean of values across all operational combustion lines for the month"]
["Jun",30,3.1,14,5,3.1,5,null,null,null,"Jun",3.1,14,3.1,5]
["Jul",30,1.7,6.3,5,1.6,2.4,null,null,null,"Jul",1.7,6.3,1.6,2.4]
["Aug",30,1.4,8.1999999999999993,5,1.3,2.2999999999999998,null,null,null,"Aug",1.4,8.1999999999999993,1.3,2.2999999999999998,null,"Maximum: for 1/2 hourly and daily periods use the highest value across all operational combustion lines for the month"]
["Sep",30,1.5,7.9,5,1.5,2.6,null,null,null,"Sep",1.5,7.9,1.5,2.6]
["Oct",30,1.3,6.9,5,1.3137931034482757,2.2999999999999998,null,null,null,"Oct",1.3,6.9,1.3137931034482757,2.2999999999999998]
["Nov",30,1.8,16.399999999999999,5,1.8041666666666669,4.2,null,null,null,"Nov",1.8,16.399999999999999,1.8041666666666669,4.2]
["Dec",30,0.6,18.899999999999999,5,0.6,1.9,null,null,null,"Dec",0.6,18.899999999999999,0.6,1.9]
[null,null,null,null,null,null,null,null,null,null,"Annual",{"$f":"AVERAGE(L7:L18)","v":1.55},{"$f":"MAX(M7:M18)","v":18.899999999999999},{"$f":"AVERAGE(N7:N18)","v":1.5264966475095785},{"$f":"MAX(O7:O18)","v":5.7}]
[]
[null,null,null,null,null,null,null,null,null,{"$f":"+A5","v":2024},"mg/Nm3","Monthly mean of half-hourly averages","Highest half- hourly average","Monthly mean of  daily averages","Highest daily average"]
[null,null,null,null,null,null,null,null,null,"A2","Jan"]
[null,null,null,null,null,null,null,null,null,null,"Feb"]
[null,null,null,null,null,null,null,null,null,null,"Mar"]
[null,null,null,null,null,null,null,null,null,null,"Apr"]
[null,null,null,null,null,null,null,null,null,null,"May"]
[null,null,null,null,null,null,null,null,null,null,"Jun"]
[null,null,null,null,null,null,null,null,null,null,"Jul"]
[null,null,null,null,null,null,null,null,null,null,"Aug"]
[null,null,null,null,null,null,null,null,null,null,"Sep"]
[null,null,null,null,null,null,null,null,null,null,"Oct"]
[null,null,null,null,null,null,null,null,null,null,"Nov"]
[null,null,null,null,null,null,null,null,null,null,"Dec"]
[null,null,null,null,null,null,null,null,null,null,"Annual",{"$f":"AVERAGE(L22:L33)","v":{"$error":"#DIV/0!"}},{"$f":"MAX(M22:M33)","v":0},{"$f":"AVERAGE(N22:N33)","v":{"$error":"#DIV/0!"}},{"$f":"MAX(O22:O33)","v":0}]
[]
[null,null,null,null,null,null,null,null,null,{"$f":"+A5","v":2024},"mg/Nm3","Monthly mean of half-hourly averages","Highest half- hourly average","Monthly mean of  daily averages","Highest daily average"]
[null,null,null,null,null,null,null,null,null,"A3","Jan"]
[null,null,null,null,null,null,null,null,null,null,"Feb"]
[null,null,null,null,null,null,null,null,null,null,"Mar"]
[null,null,null,null,null,null,null,null,null,null,"Apr"]
[null,null,null,null,null,null,null,null,null,null,"May"]
[null,null,null,null,null,null,null,null,null,null,"Jun"]
[null,null,null,null,null,null,null,null,null,null,"Jul"]
[null,null,null,null,null,null,null,null,null,null,"Aug"]
[null,null,null,null,null,null,null,null,null,null,"Sep"]
[null,null,null,null,null,null,null,null,null,null,"Oct"]
[null,null,null,null,null,null,null,null,null,null,"Nov"]
["Comments :",null,null,null,null,null,null,null,null,null,"Dec"]
[null,null,null,null,null,null,null,null,null,null,"Annual",{"$f":"AVERAGE(L37:L48)","v":{"$error":"#DIV/0!"}},{"$f":"MAX(M37:M48)","v":0},{"$f":"AVERAGE(N37:N48)","v":{"$error":"#DIV/0!"}},{"$f":"MAX(O37:O48)","v":0}]
[]
[null,null,null,null,null,null,null,null,null,{"$f":"+A5","v":2024},"mg/Nm3","Monthly mean of half-hourly averages","Highest half- hourly average","Monthly mean of  daily averages","Highest daily average"]
[null,null,null,null,null,null,null,null,null,"A4","Jan"]
[null,null,null,null,null,null,null,null,null,null,"Feb"]
[null,null,null,null,null,null,null,null,null,null,"May"]
[null,null,null,null,null,null,null,null,null,null,"Jun"]
[null,null,null,null,null,null,null,null,null,null,"Jul"]
[null,null,null,null,null,null,null,null,null,null,"Aug"]
[null,null,null,null,null,null,null,null,null,null,"Sep"]
[null,null,null,null,null,null,null,null,null,null,"Oct"]
[null,null,null,null,null,null,null,null,null,null,"Nov"]
[null,null,null,null,null,null,null,null,null,null,"Dec"]
[null,null,null,null,null,null,null,null,null,null,"Annual",{"$f":"AVERAGE(L52:L61)","v":{"$error":"#DIV/0!"}},{"$f":"MAX(M52:M61)","v":0},{"$f":"AVERAGE(N52:N61)","v":{"$error":"#DIV/0!"}},{"$f":"MAX(O52:O61)","v":0}]
[]
[null,null,null,null,null,null,null,null,null,{"$f":"+A5","v":2024},"mg/Nm3","Monthly mean of half-hourly averages","Highest half- hourly average","Monthly mean of  daily averages","Highest daily average"]
[null,null,null,null,null,null,null,null,null,"A5","Jan"]
[null,null,null,null,null,null,null,null,null,null,"Feb"]
[null,null,null,null,null,null,null,null,null,null,"Mar"]
[null,null,null,null,null,null,null,null,null,null,"Apr"]
[null,null,null,null,null,null,null,null,null,null,"May"]
[null,null,null,null,null,null,null,null,null,null,"Jun"]
[null,null,null,null,null,null,null,null,null,null,"Jul"]
[null,null,null,null,null,null,null,null,null,null,"Aug"]
[null,null,null,null,null,null,null,null,null,null,"Sep"]
[null,null,null,null,null,null,null,null,null,null,"Oct"]
[null,null,null,null,null,null,null,null,null,null,"Nov"]
[null,null,null,null,null,null,null,null,null,null,"Dec"]
[null,null,null,null,null,null,null,null,null,null,"Annual",{"$f":"AVERAGE(L65:L76)","v":{"$error":"#DIV/0!"}},{"$f":"MAX(M65:M76)","v":0},{"$f":"AVERAGE(N65:N76)","v":{"$error":"#DIV/0!"}},{"$f":"MAX(O65:O76)","v":0}]

{"sheet":"CO 0.5 hourly","index":20,"n_rows":82,"n_cols":17,"rows_kept":82,"cut":false,"hidden":true,"merged":[[4,0,5,6],[6,16,10,18],[12,16,14,18],[15,16,18,18],[69,9,81,9],[7,1,7,3],[7,4,7,6],[7,9,7,14],[9,9,21,9],[24,9,36,9],[39,9,51,9],[50,0,50,6],[51,0,54,6],[54,9,66,9]]}
[{"$f":"+'Cover Page'!$B$29","v":"Annual Performance Report 2024"},null,null,null,{"$f":"+'Cover Page'!$B$33","v":"Peterborough Energy Recovery Facility"}]
[]
["Monitoring of Carbon Monoxide (half hourly)",null,null,"Whole Installation",null,null,"See  Notes in Cell Q3",null,null,{"$f":"+A3","v":"Monitoring of Carbon Monoxide (half hourly)"},null,null,null,"Per Combustion Line",null,null,"Notes:"]
[]
["Please complete this tab for your plant if you have 1/2 hourly CO ELVs; otherwise, leave it blank and complete the CO 95% 10 min tab"]
[]
[null,null,null,null,null,null,null,null,null,null,null,null,null,null,null,null,"User to add logic to complete Whole installation, Table A5:G18. From the data in Per Combustion Line, Table J6:O79, subject to No. of lines installed"]
[{"$f":"+'Cover Page'!C39","v":2024},"1/2 Hourly Reference Periods",null,null,"Daily Reference Periods"]
["mg/Nm3","1/2 hourly CO ELV","Monthly mean of half-hourly averages","Highest half- hourly average","Daily CO ELV","Monthly mean of  daily averages","Highest daily average",null,null,{"$f":"+A8","v":2024},"mg/Nm3","Monthly mean of half-hourly averages","Highest half- hourly average","Monthly mean of  daily averages","Highest daily average"]
["Jan",100,null,null,50,null,null,null,null,"A1","Jan"]
["Feb",{"$f":"+B10","v":100},null,null,{"$f":"+E10","v":50},null,null,null,null,null,"Feb"]
["Mar",{"$f":"+B11","v":100},null,null,{"$f":"+E11","v":50},null,null,null,null,null,"Mar",null,null,null,null,null,"Whole Installation table A5:G18:"]
["Apr",100,null,null,50,null,null,null,null,null,"Apr",null,null,null,null,null,"Mean: for 1/2 hourly and daily periods calculate mean of values across all operational combustion lines for the month"]
["May",100,null,null,50,null,null,null,null,null,"May"]
["Jun",100,null,null,50,null,null,null,null,null,"Jun"]
["Jul",100,null,null,50,null,null,null,null,null,"Jul",null,null,null,null,null,"Maximum: for 1/2 hourly and daily periods use the highest value across all operational combustion lines for the month"]
["Aug",100,null,null,50,null,null,null,null,null,"Aug"]
["Sep",100,null,null,50,null,null,null,null,null,"Sep"]
["Oct",100,null,null,50,null,null,null,null,null,"Oct"]
["Nov",100,null,null,50,null,null,null,null,null,"Nov"]
["Dec",100,null,null,50,null,null,null,null,null,"Dec"]
[null,null,null,null,null,null,null,null,null,null,"Annual",{"$f":"AVERAGE(L10:L21)","v":{"$error":"#DIV/0!"}},{"$f":"MAX(M10:M21)","v":0},{"$f":"AVERAGE(N10:N21)","v":{"$error":"#DIV/0!"}},{"$f":"MAX(O10:O21)","v":0}]
[]
[null,null,null,null,null,null,null,null,null,{"$f":"+A8","v":2024},"mg/Nm3","Monthly mean of half-hourly averages","Highest half- hourly average","Monthly mean of  daily averages","Highest daily average"]
[null,null,null,null,null,null,null,null,null,"A2","Jan"]
[null,null,null,null,null,null,null,null,null,null,"Feb"]
[null,null,null,null,null,null,null,null,null,null,"Mar"]
[null,null,null,null,null,null,null,null,null,null,"Apr"]
[null,null,null,null,null,null,null,null,null,null,"May"]
[null,null,null,null,null,null,null,null,null,null,"Jun"]
[null,null,null,null,null,null,null,null,null,null,"Jul"]
[null,null,null,null,null,null,null,null,null,null,"Aug"]
[null,null,null,null,null,null,null,null,null,null,"Sep"]
[null,null,null,null,null,null,null,null,null,null,"Oct"]
[null,null,null,null,null,null,null,null,null,null,"Nov"]
[null,null,null,null,null,null,null,null,null,null,"Dec"]
[null,null,null,null,null,null,null,null,null,null,"Annual",{"$f":"AVERAGE(L25:L36)","v":{"$error":"#DIV/0!"}},{"$f":"MAX(M25:M36)","v":0},{"$f":"AVERAGE(N25:N36)","v":{"$error":"#DIV/0!"}},{"$f":"MAX(O25:O36)","v":0}]
[]
[null,null,null,null,null,null,null,null,null,{"$f":"+A8","v":2024},"mg/Nm3","Monthly mean of half-hourly averages","Highest half- hourly average","Monthly mean of  daily averages","Highest daily average"]
[null,null,null,null,null,null,null,null,null,"A3","Jan"]
[null,null,null,null,null,null,null,null,null,null,"Feb"]
[null,null,null,null,null,null,null,null,null,null,"Mar"]
[null,null,null,null,null,null,null,null,null,null,"Apr"]
[null,null,null,null,null,null,null,null,null,null,"May"]
[null,null,null,null,null,null,null,null,null,null,"Jun"]
[null,null,null,null,null,null,null,null,null,null,"Jul"]
[null,null,null,null,null,null,null,null,null,null,"Aug"]
[null,null,null,null,null,null,null,null,null,null,"Sep"]
[null,null,null,null,null,null,null,null,null,null,"Oct"]
[null,null,null,null,null,null,null,null,null,null,"Nov"]
["Comments :",null,null,null,null,null,null,null,null,null,"Dec"]
[null,null,null,null,null,null,null,null,null,null,"Annual",{"$f":"AVERAGE(L40:L51)","v":{"$error":"#DIV/0!"}},{"$f":"MAX(M40:M51)","v":0},{"$f":"AVERAGE(N40:N51)","v":{"$error":"#DIV/0!"}},{"$f":"MAX(O40:O51)","v":0}]
[]
[null,null,null,null,null,null,null,null,null,{"$f":"+A8","v":2024},"mg/Nm3","Monthly mean of half-hourly averages","Highest half- hourly average","Monthly mean of  daily averages","Highest daily average"]
[null,null,null,null,null,null,null,null,null,"A4","Jan"]
[null,null,null,null,null,null,null,null,null,null,"Feb"]
[null,null,null,null,null,null,null,null,null,null,"Mar"]
[null,null,null,null,null,null,null,null,null,null,"Apr"]
[null,null,null,null,null,null,null,null,null,null,"May"]
[null,null,null,null,null,null,null,null,null,null,"Jun"]
[null,null,null,null,null,null,null,null,null,null,"Jul"]
[null,null,null,null,null,null,null,null,null,null,"Aug"]
[null,null,null,null,null,null,null,null,null,null,"Sep"]
[null,null,null,null,null,null,null,null,null,null,"Oct"]
[null,null,null,null,null,null,null,null,null,null,"Nov"]
[null,null,null,null,null,null,null,null,null,null,"Dec"]
[null,null,null,null,null,null,null,null,null,null,"Annual",{"$f":"AVERAGE(L55:L66)","v":{"$error":"#DIV/0!"}},{"$f":"MAX(M55:M66)","v":0},{"$f":"AVERAGE(N55:N66)","v":{"$error":"#DIV/0!"}},{"$f":"MAX(O55:O66)","v":0}]
[]
[null,null,null,null,null,null,null,null,null,{"$f":"+A8","v":2024},"mg/Nm3","Monthly mean of half-hourly averages","Highest half- hourly average","Monthly mean of  daily averages","Highest daily average"]
[null,null,null,null,null,null,null,null,null,"A5","Jan"]
[null,null,null,null,null,null,null,null,null,null,"Feb"]
[null,null,null,null,null,null,null,null,null,null,"Mar"]
[null,null,null,null,null,null,null,null,null,null,"Apr"]
[null,null,null,null,null,null,null,null,null,null,"May"]
[null,null,null,null,null,null,null,null,null,null,"Jun"]
[null,null,null,null,null,null,null,null,null,null,"Jul"]
[null,null,null,null,null,null,null,null,null,null,"Aug"]
[null,null,null,null,null,null,null,null,null,null,"Sep"]
[null,null,null,null,null,null,null,null,null,null,"Oct"]
[null,null,null,null,null,null,null,null,null,null,"Nov"]
[null,null,null,null,null,null,null,null,null,null,"Dec"]
[null,null,null,null,null,null,null,null,null,null,"Annual",{"$f":"AVERAGE(L70:L81)","v":{"$error":"#DIV/0!"}},{"$f":"MAX(M70:M81)","v":0},{"$f":"AVERAGE(N70:N81)","v":{"$error":"#DIV/0!"}},{"$f":"MAX(O70:O81)","v":0}]

{"sheet":"CO 95% 10 min","index":21,"n_rows":80,"n_cols":19,"rows_kept":80,"cut":false,"hidden":false,"merged":[[4,0,5,7],[6,18,10,20],[12,18,14,20],[15,18,18,20],[67,10,79,10],[7,1,7,4],[7,5,7,7],[7,10,7,16],[9,10,21,10],[24,10,36,10],[39,10,51,10],[50,0,50,7],[51,0,52,7],[53,10,64,10]]}
[{"$f":"+'Cover Page'!$B$29","v":"Annual Performance Report 2024"},null,null,null,{"$f":"+'Cover Page'!$B$33","v":"Peterborough Energy Recovery Facility"}]
[]
["Monitoring of Carbon Monoxide (10-minute avg)",null,null,null,"Whole Installation",null,null,"See  Notes in Cell S3",null,{"$f":"+A3","v":"Monitoring of Carbon Monoxide (10-minute avg)"},null,null,null,null,"Per Combustion Line",null,"Notes:",null,"Notes:"]
[]
["Please complete this tab for your plant if you have 10-minute average CO ELVs; otherwise, leave it blank and complete the CO 0.5 hourly tab"]
[]
[null,null,null,null,null,null,null,null,null,null,null,null,null,null,null,null,null,null,"User to add logic to complete Whole installation, Table A5:H18. From the data in Per Combustion Line, Table K6:Q79, subject to No. of lines installed"]
[{"$f":"+'Cover Page'!C39","v":2024},"10-minute Reference Periods",null,null,null,"Daily Reference Periods"]
["mg/Nm3","95%ile 10-min avg CO ELV","Highest daily 95%ile 10-min average","Monthly mean of 10-min averages","Highest 10-min average","Daily CO ELV","Monthly mean of  daily averages","Highest daily average",null,null,{"$f":"+A8","v":2024},"mg/Nm3","Highest daily 95%ile 10-min average","Monthly mean of 10-min averages","Highest 10-min average","Monthly mean of  daily averages","Highest daily average"]
["Jan",150,{"$f":"M10","v":14.3},{"$f":"N10","v":2.2999999999999998},172.4,50,{"$f":"P10","v":2.2000000000000002},{"$f":"Q10","v":3.9},null,null,"A1","Jan",14.3,2.2999999999999998,172.4,2.2000000000000002,3.9]
["Feb",{"$f":"+B10","v":150},{"$f":"M11","v":5.4},{"$f":"N11","v":0.3},{"$f":"O11","v":202.7},{"$f":"+F10","v":50},{"$f":"P11","v":0.2},{"$f":"Q11","v":1.6},null,null,null,"Feb",5.4,0.3,202.7,0.2,1.6]
["Mar",{"$f":"+B11","v":150},8.8000000000000007,0.5,365.7,{"$f":"+F11","v":50},0.5,6.5,null,null,null,"Mar",8.8000000000000007,0.5,365.7,0.5,6.5,null,"Whole Installation table A5:H18:"]
["Apr",150,8.1,0.1,39.799999999999997,50,0.1,1.2,null,null,null,"Apr",8.1,0.1,39.799999999999997,0.1,1.2,null,"Mean: for 10-min and daily periods use average of all operational combustion lines."]
["May",150,10.199999999999999,0.2,92.9,50,0.2,1.3,null,null,null,"May",10.199999999999999,0.2,92.9,0.2,1.3]
["Jun",150,4,0.2,139.6,50,0.2,1.5,null,null,null,"Jun",4,0.2,139.6,0.2,1.5]
["Jul",150,3.5,0.4,483.6,50,0.3,3.5,null,null,null,"Jul",3.5,0.4,483.6,0.3,3.5,null,"Maximum: for 10-min and daily periods use the highest of all operational combustion lines in any month."]
["Aug",150,3.2,0.4,299.2,50,0.4,2.5,null,null,null,"Aug",3.2,0.4,299.2,0.4,2.5]
["Sep",150,16.100000000000001,0.6,255.6,50,0.5,4.9000000000000004,null,null,null,"Sep",16.100000000000001,0.6,255.6,0.5,4.9000000000000004]
["Oct",150,11.8,0.7,412.1,50,0.56551724137931025,3.6,null,null,null,"Oct",11.8,0.7,412.1,0.56551724137931025,3.6]
["Nov",150,10.7,0.8,353.3,50,0.94166666666666676,4,null,null,null,"Nov",10.7,0.8,353.3,0.94166666666666676,4]
["Dec",150,7,1.2,332.9,50,1,4.3,null,null,null,"Dec",7,1.2,332.9,1,4.3]
[null,null,null,null,null,null,null,null,null,null,null,"Annual",{"$f":"AVERAGE(M10:M21)","v":8.5916666666666668},{"$f":"AVERAGE(N10:N21)","v":0.64166666666666672},{"$f":"MAX(O10:O21)","v":483.6},{"$f":"AVERAGE(P10:P21)","v":0.59226532567049806},{"$f":"MAX(Q10:Q21)","v":6.5}]
[]
[null,null,null,null,null,null,null,null,null,null,{"$f":"+A8","v":2024},"mg/Nm3","Highest daily 95%ile 10-min average","Monthly mean of 10-min averages","Highest 10-min average","Monthly mean of  daily averages","Highest daily average"]
[null,null,null,null,null,null,null,null,null,null,"A2","Jan"]
[null,null,null,null,null,null,null,null,null,null,null,"Feb"]
[null,null,null,null,null,null,null,null,null,null,null,"Mar"]
[null,null,null,null,null,null,null,null,null,null,null,"Apr"]
[null,null,null,null,null,null,null,null,null,null,null,"May"]
[null,null,null,null,null,null,null,null,null,null,null,"Jun"]
[null,null,null,null,null,null,null,null,null,null,null,"Jul"]
[null,null,null,null,null,null,null,null,null,null,null,"Aug"]
[null,null,null,null,null,null,null,null,null,null,null,"Sep"]
[null,null,null,null,null,null,null,null,null,null,null,"Oct"]
[null,null,null,null,null,null,null,null,null,null,null,"Nov"]
[null,null,null,null,null,null,null,null,null,null,null,"Dec"]
[null,null,null,null,null,null,null,null,null,null,null,"Annual",{"$f":"AVERAGE(M25:M36)","v":{"$error":"#DIV/0!"}},null,{"$f":"MAX(O25:O36)","v":0},{"$f":"AVERAGE(P25:P36)","v":{"$error":"#DIV/0!"}},{"$f":"MAX(Q25:Q36)","v":0}]
[]
[null,null,null,null,null,null,null,null,null,null,{"$f":"+A8","v":2024},"mg/Nm3","Highest daily 95%ile 10-min average","Monthly mean of 10-min averages","Highest 10-min average","Monthly mean of  daily averages","Highest daily average"]
[null,null,null,null,null,null,null,null,null,null,"A3","Jan"]
[null,null,null,null,null,null,null,null,null,null,null,"Feb"]
[null,null,null,null,null,null,null,null,null,null,null,"Mar"]
[null,null,null,null,null,null,null,null,null,null,null,"Apr"]
[null,null,null,null,null,null,null,null,null,null,null,"May"]
[null,null,null,null,null,null,null,null,null,null,null,"Jun"]
[null,null,null,null,null,null,null,null,null,null,null,"Jul"]
[null,null,null,null,null,null,null,null,null,null,null,"Aug"]
[null,null,null,null,null,null,null,null,null,null,null,"Sep"]
[null,null,null,null,null,null,null,null,null,null,null,"Oct"]
[null,null,null,null,null,null,null,null,null,null,null,"Nov"]
["Comments :",null,null,null,null,null,null,null,null,null,null,"Dec"]
["Environment Agency explanatory note: The 10-minute average ELV is based on the “95th percentile”. In this case this means that 95% of the 10 minute averages in the relevant 24-hour period (i.e. 137) must be below 150 mg/Nm3, and 5% (i.e. 7) are allowed to be any value above 150 mg/Nm3. Whilst we expect operators to minimise CO emissions at all times, it is perfectly acceptable for the value of the maximum 10-minute average to be above 150 mg/Nm3, provided the 95th percentile ELV has been met for that period. ",null,null,null,null,null,null,null,null,null,null,"Annual",{"$f":"AVERAGE(M40:M51)","v":{"$error":"#DIV/0!"}},null,{"$f":"MAX(O40:O51)","v":0},{"$f":"AVERAGE(P40:P51)","v":{"$error":"#DIV/0!"}},{"$f":"MAX(Q40:Q51)","v":0}]
[]
[null,null,null,null,null,null,null,null,null,null,null,"Feb"]
[null,null,null,null,null,null,null,null,null,null,null,"Mar"]
[null,null,null,null,null,null,null,null,null,null,null,"Apr"]
[null,null,null,null,null,null,null,null,null,null,null,"May"]
[null,null,null,null,null,null,null,null,null,null,null,"Jun"]
[null,null,null,null,null,null,null,null,null,null,null,"Jul"]
[null,null,null,null,null,null,null,null,null,null,null,"Aug"]
[null,null,null,null,null,null,null,null,null,null,null,"Sep"]
[null,null,null,null,null,null,null,null,null,null,null,"Oct"]
[null,null,null,null,null,null,null,null,null,null,null,"Nov"]
[null,null,null,null,null,null,null,null,null,null,null,"Dec"]
[null,null,null,null,null,null,null,null,null,null,null,"Annual",{"$f":"AVERAGE(M54:M64)","v":{"$error":"#DIV/0!"}},null,{"$f":"MAX(O54:O64)","v":0},{"$f":"AVERAGE(P54:P64)","v":{"$error":"#DIV/0!"}},{"$f":"MAX(Q54:Q64)","v":0}]
[]
[null,null,null,null,null,null,null,null,null,null,{"$f":"+A8","v":2024},"mg/Nm3","95%ile 10-min avg maximum","Monthly CO 10-min avg mean","10-min avg maximum","Monthly daily mean","Monthly daily maximum"]
[null,null,null,null,null,null,null,null,null,null,"A5","Jan"]
[null,null,null,null,null,null,null,null,null,null,null,"Feb"]
[null,null,null,null,null,null,null,null,null,null,null,"Mar"]
[null,null,null,null,null,null,null,null,null,null,null,"Apr"]
[null,null,null,null,null,null,null,null,null,null,null,"May"]
[null,null,null,null,null,null,null,null,null,null,null,"Jun"]
[null,null,null,null,null,null,null,null,null,null,null,"Jul"]
[null,null,null,null,null,null,null,null,null,null,null,"Aug"]
[null,null,null,null,null,null,null,null,null,null,null,"Sep"]
[null,null,null,null,null,null,null,null,null,null,null,"Oct"]
[null,null,null,null,null,null,null,null,null,null,null,"Nov"]
[null,null,null,null,null,null,null,null,null,null,null,"Dec"]
[null,null,null,null,null,null,null,null,null,null,null,"Annual",{"$f":"AVERAGE(M68:M79)","v":{"$error":"#DIV/0!"}},null,{"$f":"MAX(O68:O79)","v":0},{"$f":"AVERAGE(P68:P79)","v":{"$error":"#DIV/0!"}},{"$f":"MAX(Q68:Q79)","v":0}]

{"sheet":"NH3","index":22,"n_rows":77,"n_cols":17,"rows_kept":77,"cut":false,"hidden":false,"merged":[[3,16,7,18],[9,16,11,18],[12,16,15,18],[64,9,76,9],[4,1,4,3],[4,4,4,6],[4,9,4,14],[6,9,18,9],[21,9,33,9],[36,9,48,9],[47,0,47,6],[48,0,51,6],[51,9,61,9],[18,4,18,6]]}
[{"$f":"+'Cover Page'!$B$29","v":"Annual Performance Report 2024"},null,null,null,{"$f":"+'Cover Page'!$B$33","v":"Peterborough Energy Recovery Facility"}]
[]
["Monitoring of Ammnonia emissions ",null,null,"Whole Installation",null,null,"See  Notes in Cell Q3",null,null,{"$f":"+A3","v":"Monitoring of Ammnonia emissions "},null,null,null,"Per Combustion Line",null,null,"Notes:"]
[null,null,null,null,null,null,null,null,null,null,null,null,null,null,null,null,"User to add logic to complete Whole installation, Table A5:G18. From the data in Per Combustion Line, Table J6:O79, subject to No. of lines installed"]
[{"$f":"+'Cover Page'!C39","v":2024},"1/2 Hourly Reference Periods",null,null,"Daily Reference Periods"]
["mg/Nm3","1/2 hourly NH3 ELV","Monthly mean of half-hourly averages","Highest half- hourly average","Daily NH3 ELV","Monthly mean of  daily averages","Highest daily average",null,null,{"$f":"+A5","v":2024},"mg/Nm3","Monthly mean of half-hourly averages","Highest half- hourly average","Monthly mean of  daily averages","Highest daily average"]
["Jan","None",{"$f":"L7","v":1.4},{"$f":"M7","v":19.8},15,{"$f":"N7","v":1.3},{"$f":"O7","v":3.1},null,null,"A1","Jan",1.4,19.8,1.3,3.1]
["Feb",{"$f":"+B7","v":"None"},{"$f":"L8","v":0.3},8,15,{"$f":"N8","v":0.3},1.2,null,null,null,"Feb",0.3,8,0.3,1.2]
["Mar",{"$f":"+B8","v":"None"},0.2,8.4,15,0.2,1.2,null,null,null,"Mar",0.2,8.4,0.2,1.2,null,"Whole Installation table A5:G18:"]
["Apr","None",0.2,6.2,15,0.1,0.6,null,null,null,"Apr",0.2,6.2,0.1,0.6,null,"Mean: for 1/2 hourly and daily periods calculate mean of values across all operational combustion lines for the month"]
["May","None",0.3,10,15,0.2,1.4,null,null,null,"May",0.3,10,0.2,1.4]
["Jun","None",0.1,4.5,15,0.1,0.4,null,null,null,"Jun",0.1,4.5,0.1,0.4]
["Jul","None",0.4,16.8,15,0.3,2.2999999999999998,null,null,null,"Jul",0.4,16.8,0.3,2.2999999999999998,null,"Maximum: for 1/2 hourly and daily periods use the highest value across all operational combustion lines for the month"]
["Aug","None",0.1,4.2,15,0,0.4,null,null,null,"Aug",0.1,4.2,0,0.4]
["Sep","None",0.3,16.100000000000001,15,0.2,1.9,null,null,null,"Sep",0.3,16.100000000000001,0.2,1.9]
["Oct","None",0.4,23,15,0.31034482758620685,4.0999999999999996,null,null,null,"Oct",0.4,23,0.31034482758620685,4.0999999999999996]
["Nov","None",0,3,15,3.3333333333333333E-2,0.2,null,null,null,"Nov",0,3,3.3333333333333333E-2,0.2]
["Dec","None",0,3.2,15,0,0.1,null,null,null,"Dec",0,3.2,0,0.1]
[null,null,null,null,null,null,null,null,null,null,"Annual",{"$f":"AVERAGE(L7:L18)","v":0.30833333333333329},{"$f":"MAX(M7:M18)","v":23},{"$f":"AVERAGE(N7:N18)","v":0.25363984674329504},{"$f":"MAX(O7:O18)","v":4.0999999999999996}]
[]
[null,null,null,null,null,null,null,null,null,{"$f":"+A5","v":2024},"mg/Nm3","Monthly mean of half-hourly averages","Highest half- hourly average","Monthly mean of  daily averages","Highest daily average"]
[null,null,null,null,null,null,null,null,null,"A2","Jan"]
[null,null,null,null,null,null,null,null,null,null,"Feb"]
[null,null,null,null,null,null,null,null,null,null,"Mar"]
[null,null,null,null,null,null,null,null,null,null,"Apr"]
[null,null,null,null,null,null,null,null,null,null,"May"]
[null,null,null,null,null,null,null,null,null,null,"Jun"]
[null,null,null,null,null,null,null,null,null,null,"Jul"]
[null,null,null,null,null,null,null,null,null,null,"Aug"]
[null,null,null,null,null,null,null,null,null,null,"Sep"]
[null,null,null,null,null,null,null,null,null,null,"Oct"]
[null,null,null,null,null,null,null,null,null,null,"Nov"]
[null,null,null,null,null,null,null,null,null,null,"Dec"]
[null,null,null,null,null,null,null,null,null,null,"Annual",{"$f":"AVERAGE(L22:L33)","v":{"$error":"#DIV/0!"}},{"$f":"MAX(M22:M33)","v":0},{"$f":"AVERAGE(N22:N33)","v":{"$error":"#DIV/0!"}},{"$f":"MAX(O22:O33)","v":0}]
[]
[null,null,null,null,null,null,null,null,null,{"$f":"+A5","v":2024},"mg/Nm3","Monthly mean of half-hourly averages","Highest half- hourly average","Monthly mean of  daily averages","Highest daily average"]
[null,null,null,null,null,null,null,null,null,"A3","Jan"]
[null,null,null,null,null,null,null,null,null,null,"Feb"]
[null,null,null,null,null,null,null,null,null,null,"Mar"]
[null,null,null,null,null,null,null,null,null,null,"Apr"]
[null,null,null,null,null,null,null,null,null,null,"May"]
[null,null,null,null,null,null,null,null,null,null,"Jun"]
[null,null,null,null,null,null,null,null,null,null,"Jul"]
[null,null,null,null,null,null,null,null,null,null,"Aug"]
[null,null,null,null,null,null,null,null,null,null,"Sep"]
[null,null,null,null,null,null,null,null,null,null,"Oct"]
[null,null,null,null,null,null,null,null,null,null,"Nov"]
["Comments :",null,null,null,null,null,null,null,null,null,"Dec"]
["An indicated ELV value of zero in the table above means that no ammonia limit is/was set in the permit.  ",null,null,null,null,null,null,null,null,null,"Annual",{"$f":"AVERAGE(L37:L48)","v":{"$error":"#DIV/0!"}},{"$f":"MAX(M37:M48)","v":0},{"$f":"AVERAGE(N37:N48)","v":{"$error":"#DIV/0!"}},{"$f":"MAX(O37:O48)","v":0}]
[]
[null,null,null,null,null,null,null,null,null,{"$f":"+A5","v":2024},"mg/Nm3","Monthly mean of half-hourly averages","Highest half- hourly average","Monthly mean of  daily averages","Highest daily average"]
[null,null,null,null,null,null,null,null,null,"A4","Jan"]
[null,null,null,null,null,null,null,null,null,null,"Feb"]
[null,null,null,null,null,null,null,null,null,null,"May"]
[null,null,null,null,null,null,null,null,null,null,"Jun"]
[null,null,null,null,null,null,null,null,null,null,"Jul"]
[null,null,null,null,null,null,null,null,null,null,"Aug"]
[null,null,null,null,null,null,null,null,null,null,"Sep"]
[null,null,null,null,null,null,null,null,null,null,"Oct"]
[null,null,null,null,null,null,null,null,null,null,"Nov"]
[null,null,null,null,null,null,null,null,null,null,"Dec"]
[null,null,null,null,null,null,null,null,null,null,"Annual",{"$f":"AVERAGE(L52:L61)","v":{"$error":"#DIV/0!"}},{"$f":"MAX(M52:M61)","v":0},{"$f":"AVERAGE(N52:N61)","v":{"$error":"#DIV/0!"}},{"$f":"MAX(O52:O61)","v":0}]
[]
[null,null,null,null,null,null,null,null,null,{"$f":"+A5","v":2024},"mg/Nm3","Monthly mean of half-hourly averages","Highest half- hourly average","Monthly mean of  daily averages","Highest daily average"]
[null,null,null,null,null,null,null,null,null,"A5","Jan"]
[null,null,null,null,null,null,null,null,null,null,"Feb"]
[null,null,null,null,null,null,null,null,null,null,"Mar"]
[null,null,null,null,null,null,null,null,null,null,"Apr"]
[null,null,null,null,null,null,null,null,null,null,"May"]
[null,null,null,null,null,null,null,null,null,null,"Jun"]
[null,null,null,null,null,null,null,null,null,null,"Jul"]
[null,null,null,null,null,null,null,null,null,null,"Aug"]
[null,null,null,null,null,null,null,null,null,null,"Sep"]
[null,null,null,null,null,null,null,null,null,null,"Oct"]
[null,null,null,null,null,null,null,null,null,null,"Nov"]
[null,null,null,null,null,null,null,null,null,null,"Dec"]
[null,null,null,null,null,null,null,null,null,null,"Annual",{"$f":"AVERAGE(L65:L76)","v":{"$error":"#DIV/0!"}},{"$f":"MAX(M65:M76)","v":0},{"$f":"AVERAGE(N65:N76)","v":{"$error":"#DIV/0!"}},{"$f":"MAX(O65:O76)","v":0}]

{"sheet":"Template changes log","index":23,"n_rows":17,"n_cols":3,"rows_kept":17,"cut":false,"hidden":false,"merged":[]}
["Log of changes to template (Environment Agency use only)"]
[]
["Date","Description of change","New version number and date"]
["2024-01-16","Air (periodic) tab: corrected default O2 reference from 6 to 11% ","Version 23.5a (for incinerators) - 16/01/2024"]
["2024-09-23","Air (periodic) tab: corrected symbol for Thallium to Tl"]
["2024-09-23","Air (periodic) tab: removed last year's references to different emission limit values applying from 03/12/23 and updated all relevant ELVs"]
["2024-09-23","Tabs for continuously monitored pollutants (HCl, SO2 etc.): changed terminology in table headings to improve clarity"]
["2024-09-23","Tabs for continuously monitored pollutants (HCl, SO2 etc.): removed last year's references to different emission limit values applying from 03/12/23 and updated all relevant ELVs"]
["2024-09-23","Perf 1 tab: updated formula for water usage to report m3 rather than litres and corrected error with formula copying operator name"]
["2024-09-23","Operational Summary tab: table added on start-up's and shut-downs"]
["2024-09-23","Operational Summary tab: table added on dioxins and mercury protocols"]
["2024-09-23","Operational Summary tab: table added on AST, QAL 2 and calibration functions"]
["2024-09-23","CO2 N2O tab: various changes made to notes to reflect the fact that most plants should now have calibrated CEMS and flow meters + some have C14 samplers and more up to date industry data","Version 24a (for incinerators) - 23/09/24"]
["2024-01-08","CO2 N2O tab: Changed the N2O CO2 equivalence factor from 298 to 265 in line with recently updated government greenhouse gas figures: https://www.gov.uk/government/publications/greenhouse-gas-reporting-conversion-factors-2024"]
["2024-01-08","CO2 N2O tab: Added an additional requirement for municipal EfW plants to state the yearly average biogenic percentage of the waste by mass, and reference to a document which sets out a methodology for calculating NCV of waste from the results of C14 sampling."]
["2024-01-08","Permit Compliance tab: Two additional columns added + explanatory notes to the table entitled \"Summary of non-compliances under the permit\" to allow CCS scores to be stated where relevant. "]
["2024-01-08","Residue Quality tab: Note added explaining application of TOC and LOI limits and asking operators to report both metrics where measured. ","Version 24.1a (for incinerators) - 08/11/24"]